{"text_format":"3","workbook":"xlsx","n_sheets":1,"sheets":["汇总"],"not_rendered":{"images":2,"defined_names":3},"read":"whole","date_system":"1900"}

{"sheet":"汇总","index":0,"n_rows":300,"n_cols":23,"rows_kept":300,"merged":[[0,0,0,1],[1,0,1,22],[2,0,2,7],[2,14,2,19],[3,0,4,0],[3,22,4,22],[5,0,5,3],[6,0,6,3],[7,0,7,3],[13,0,13,3],[19,0,19,3],[166,0,166,3],[167,0,167,3],[192,0,192,3],[205,0,205,3],[279,0,279,3],[285,0,285,3],[286,0,286,3],[289,0,289,3],[295,0,295,3],[297,0,297,3],[299,0,299,22]]}
["附件 "]
["柳城县2026年度衔接推进乡村振兴项目库新增入库项目申报明细表"]
["填报单位：柳城县农业农村局"]
["序号",1,2,3,4,5,6,7,8,9,10,11,12,13,14,15,16,17,18,19,20,21,"备注"]
[null,"项目名称","项目类型","项目子类型","项目总投资金额（万元）","项目地点","项目建设内容","计划年度","直接受益人数","受益总人口数","是否贫困村提升工程","联农带农富农机制","是否增加村集体经济收入","是否易地扶贫搬迁后项目","主管部门","项目实施单位","项目负责人","联系电话","年度资金总额","其中：财政拨款（万元）","其中：其他资金（万元）","年度总体目标"]
["柳城县项目合计（279个）",{"$nulls":3},{"$f":"E7+E167+E286+E296+E298","v":25588.57}]
["一、产业发展项目（156个）",{"$nulls":3},{"$f":"E8+E14+E20","v":14310.87}]
["（一）到户类产业项目（5个）",{"$nulls":3},{"$f":"SUM(E9:E13)","v":4345}]
[1,"2026年柳城县螺蛳粉原材料产业补助建设项目","产业发展","种植业基地",950,"柳城县","给予豆角、木耳、竹子、螺蛳等螺蛳粉原材料产业种植、养殖及加工基地进行奖补",2026,715,715,"否","1、通过土地流转200亩以上增加群众收入，\n2、通过财产性收益、增加村集体收入。\n3、带动脱贫户务工300人次以上，提高群众收入，4、开展技术培训，提升产业发展水平。","否","否","柳城县农业农村局","柳城县农业农村局","兰运龙","0772-6646606",950,950,0,"对5个以上豆角、木耳、竹子、螺蛳等螺蛳粉原材料产业种植、养殖及加工基地进行奖补"]
[2,"2026年柳城县以奖代补种植养殖项目（到户以奖代补）","产业发展","种植业基地、养殖业基地",2155,"柳城县","发展种植产业25000亩，养殖家禽8000羽，家畜1000头，奖补2155万",2026,20185,20185,"否","通过对脱贫对象发展产业开展到户类补贴，受益5000户以上，惠及20000人以上。","否","否","柳城县农业农村局","柳城县农业农村局","兰运龙","0772-6646606",2155,2155,0,"完成5000户以上脱贫对象补贴发放。"]
[3,"2026年脱贫人口小额信贷贴息","产业发展","小额信贷贴息",160,"柳城县","脱贫人口积极申请脱贫人口小额贷款，解决脱贫人口产业发展项目资金需求，财政资金给予贴息，减轻脱贫人口负担，增加收入。",2026,1210,1210,"否","使脱贫人口获得脱贫人口小额信贷后财政给予贴息，增加脱贫人口收入","否","否","柳城县农业农村局","柳城县农业农村局","张笛","0772-7611187",160,160,0,"使1210户脱贫人口贷款得到贴息保障"]
[4,"柳城县脱贫人口小额信贷风险补偿金","产业发展","风险补偿金",530,"柳城县","脱贫人口小额信贷风险补偿",2026,1210,1210,"否","使脱贫人口获得脱贫人口小额信贷得到风险补偿保障","否","否","柳城县农业农村局","柳城县农业农村局","张笛","0772-7611187",530,530,0,"保障1210户脱贫人口小额信贷偿还能力"]
[5,"2026年柳城县油茶产业发展项目（奖补类）","产业发展","油茶“双千”计划补助",550,"柳城县","各乡镇脱贫户、监测户、村集体或新型经营主体2023-2026年种植良种油茶项目补助（其中2023-2024年种植面积5000亩，补助标准500元/亩；2025年种植面积2000亩，补助标准1500元/亩）",2026,200,1500,"否","群众或者村集体通过出租林地可以获得租金，油茶经营种植者发展油茶产业用工需求量大，能缓解农村剩余劳动力就业问题，通过就近务工增加。油茶成林后种植户每年能获得持续稳定的收入。","否","否","柳城县自然资源和规划局","柳城县自然资源和规划局","郭春云","0772-7616903",550,550,0,"向2023年以来全县各乡镇脱贫户、监测户、村集体或新型经营主体等油茶种植户，发放产业补助550万元。"]
["（二）经营性产业项目（5个）",{"$nulls":3},{"$f":"SUM(E15:E19)","v":1024}]
[6,"社冲乡腐竹加工厂项目","产业发展","加工业",320,"洛文村","新建占地1600平方米的钢架棚结构加工厂房1个，高9米，及配套设施。",2026,2233,2233,"是","1.对农户提供种植技术指导或培训；2.解决20人次就业务工问题。3.带动农产品购销。","否","否","柳城县农业农村局","社冲乡人民政府","覃晴","0772-2465977",320,320,0,"建成生产加工大棚面积1600平方米，解决20人次就业务工，对农户提供种植技术指导或培训。"]
[7,"社冲乡食用菌示范基地建设二期(菌丸加工厂项目)","产业发展","产业园（区）",190,"社冲村","建设食用菌示范基地二层菌丸加工厂房车间950平方米，及配套设施设备。",2026,2683,2683,"否","1.增加村集体经济收入；2.提供就业岗位30个；3.提供群众加工技术培训4、土地流转。","是","否","柳城县农业农村局","社冲乡人民政府","韦柳园","0772-2465977",190,190,0,"建成建设食用菌示范基地二层加工厂房车间950平方米，及配套设施。增加村集体经济收入，解决30人次就业务工问题，提供群众加工技术培训。"]
[8,"社冲乡冲江村农产品分拣车间项目","产业发展","产业园（区）",150,"冲江村","新建建筑面积1000平方米的钢架棚结构农产品分拣车间一座，其中500平方米的农产品分拣车间，200立方米的冷藏车间，及配套设施；",2026,281,1365,"否","1.对农户提供种植技术指导或培训；2.解决20人次就业务工问题。3.带动农产品购销。","否","否","柳城县农业农村局","社冲乡人民政府","韦柳园","0772-2465977",150,150,0,"建成农产品分拣车间面积1000平方米，解决20人次就业务工，对农户提供种植技术指导或培训，带动农产品购销。"]
[9,"六塘镇肯社村桥圩屯蚕房设施建设项目","产业发展","养殖业基地",100,"肯社村","建设约800平方米蚕房钢结构一栋，及配套设施等。",2026,3217,3217,"否","建设期间带动周边群众务工收入，项目完成后，增加村集体经济收入，带动群众务工就业，增加农户收入，通过技术扶持，提高农户产业发展水平，打造养殖基地，促进产业发展。","否","否","柳城县农业农村局","六塘镇人民政府","郭琳","0772-7711213",100,100,0,"群众积极参与，共建共享惠民工程。招商引商，带动片区活力，释放劳动力。"]
[10,"太平镇江头村生猪养殖基地项目","产业发展","新型农村集体经济发展项目",264,"江头村","利用设施农用地7.47亩（4980平方米），新建生猪养殖棚2个（钢架结构、单层），及料塔、化粪池等配套设施。",2026,1175,1175,"否","1.增加村集体经济收入；2.提供就业岗位30个；3.提供群众加工技术培训4、土地流转。","否","否","柳城县农业农村局","太平镇人民政府","韦俏爽","0772-7051213",264,264,0,"建成建设生猪养殖基地4980平方米，及配套设施。增加村集体经济收入，受益农户、人口1175，提供群众加工技术培训。"]
["（三）产业配套设施建设(146个)",{"$nulls":3},{"$f":"SUM(E21:E166)","v":8941.87}]
[11,"大埔镇三塘村六元屯千亩油茶产业示范基地道路硬化项目（二期）","产业发展","产业园（区）",59,"三塘村","产业道路硬化600米，宽4米,厚20厘米，包含路基、排水、涵洞、护栏等并合理设置错车道。",2026,59,650,"否","项目建成后，进一步提升基地开发建设便利性，提升基地管护水平，增强基地质量，提高油茶产量，增加群众收入。","否","否","柳城县自然资源和规划局","大埔镇人民政府","罗杰文","0772-7618226",59,59,0,"硬化产业道路600米，建成后进一步提升基地开发建设便利性，提升基地管护水平，增强基地质量，提高油茶产量，增加群众收入。"]
[12,"柳城县2026年少数民族发展资金-冲脉镇大要村冲团屯村前甘蔗产业基地道路建设项目","产业发展","产业园（区）",50,"大要村","建设硬化道路长1000米，路面宽3.5米，厚0.2米，路基、路肩等",2026,211,211,"是","本项目通过硬化甘蔗产业基地道路，直接降低60户农户（含脱贫户12户）的甘蔗运输成本和损耗。道路畅通后将极大便利机械化作业，提升甘蔗单产，同时为发展特色种植，形成“基础设施改善-生产效率提升-产业稳步发展-农民持续增收”的长效带动机制。","否","否","柳城县委统战部","柳城县委统战部","吴凯文","0772-7612400",50,50,0,"完成1公里产业道路建设,解决贫困地60户211人（其中脱贫户12户56人）出入主要产业区行路难问题，提高脱贫地区农业生产效率和利于农民增收。"]
[13,"柳城县2026年少数民族发展资金-冲脉镇米村村斗村屯甘蔗产业基地道路建设项目","产业发展","产业园（区）",50,"米村村","建设硬化道路长1000米，路面宽3.5米，厚0.2米，路基、路肩等",2026,451,451,"否","项目实施将彻底解决斗村屯130户农户（含脱贫户13户）长期面临的“运输难”问题，预计可为500亩甘蔗地每年节约运输成本数万元。道路硬化后有利于推动土地流转和甘蔗产业规模化发展，形成“路通业兴”的良性循环，直接带动451人稳定增收，巩固脱贫成果。","否","否","柳城县委统战部","柳城县委统战部","吴凯文","0772-7612400",50,50,0,"完成1公里产业道路建设,解决脱贫地区130户451人（其中脱贫户13户42人）出入主要产业区行路难问题，提高脱贫地区农业生产效率和利于农民增收。"]
[14,"柳城县2026年少数民族发展资金-寨隆镇鸡楼村鸡楼屯上坡至洪沼甘蔗产业基地建设项目","产业发展","产业园（区）",90,"鸡楼村","新建道路硬化长1500米、宽3.5米、厚度0.2米，挡土墙、涵管等",2026,220,795,"否","改善鸡楼屯的生产生活条件，促进产业发展，方便群众出行","否","否","柳城县委统战部","柳城县委统战部","吴凯文","0772-7612400",90,90,0,"解决鸡楼屯出入通车问题，改善220户795人出行水平。"]
[15,"柳城县2026年少数民族发展资金-龙头镇田厂村网山养猪场至牛庙塘三叉路口甘蔗产业基地产业道路建设项目","产业发展","产业园（区）",42,"田厂村","道路硬化长约750米，宽约3.5米，厚0.2米，包括路基、路面、路肩、涵洞等",2026,857,857,"否","群众积极参与，投工投劳。提升生产运输效率，解决群857人出行问题。","否","否","柳城县委统战部","柳城县委统战部","吴凯文","0772-7612400",42,42,0,"田厂村产业道路硬化项目建成后，解决群众857人出行问题。"]
[16,"柳城县2026年少数民族发展资金-凤山镇大塘村大塘屯全龙至孟村三脚岭甘蔗产业基地道路建设项目","产业发展","产业园（区）",59,"大塘村","建设内容为长1200米，硬化路面宽3.5米，厚度0.2米，挡土墙建设长50米，涵管三个、路肩、会车台等。",2026,735,735,"否","群众积极参与，项目建成后，改善生产生活条件，促进产业发展，实现农民增收增产。","否","否","柳城县委统战部","柳城县委统战部","吴凯文","0772-7612400",59,59,0,"项目收益235户735人，其中脱贫户23户75人，改善农村基础设施方面群众生产生活出行。"]
[17,"柳城县2026年少数民族发展资金-凤山镇南丹村西门崖屯村背至勒马屯莲藕塘甘蔗产业基地道路建设项目","产业发展","产业园（区）",58,"南丹村","硬化道路长960米，硬化路面宽4.0米，厚0.2米，1个转车台，1个涵管、路肩等。",2026,620,620,"否","群众积极参与，项目建成后，改善生产生活条件，促进产业发展，实现农民增收增产。","否","否","柳城县委统战部","柳城县委统战部","吴凯文","0772-7612400",58,58,0,"项目受益170户620人，其中脱贫户10户23人，改善农村生产条件，带动产业发展，增加农民收入。"]
[18,"柳城县2026年少数民族发展资金-六塘镇肯社村禄村屯甘蔗产业配套设施建设项目","产业发展","产业园（区）",45,"肯社村","改善道路，硬化道路长900米，宽4米，厚0.2米",2026,835,835,"否","项目带动群众参与，路通业兴，精准带贫增收致富。产业覆盖的甘蔗面积450亩。建成后，解决835人出行、产业交通难题","否","否","柳城县委统战部","柳城县委统战部","吴凯文","0772-7612400",45,45,0,"肯社村产业道路硬化项目建成后，解决835名群众出行和农产品运输难题。"]
[19,"柳城县2026年少数民族发展资金—古砦仫佬族乡大户村大莫屯水稻产业基地道路建设项目","产业发展","产业园（区）",75,"大户村","修建水稻产业道路1500米，宽3.5米，厚0.2米，路肩0.5米。",2026,450,450,"否","群众积极参与、改善生活生产条件、提高生活质量，项目建成后解决群众通行难问题","否","否","柳城县委统战部","柳城县委统战部","吴凯文","0772-7612400",75,75,0,"完成1500m产业道路修建。"]
[20,"柳城县2026年少数民族发展资金-古砦仫佬族乡龙美村中团屯优质稻产业基地道路硬化建设项目","产业发展","产业园（区）",23,"龙美村","修建优质稻产业道路350米，宽3.5米，厚0.2米，路肩0.5米。",2026,210,379,"否","群众积极参与、改善生活生产条件、提高生活质量，项目建成后解决群众通行难问题","否","否","柳城县委统战部","柳城县委统战部","吴凯文","0772-7612400",23,23,0,"完成350m产业道路修建。"]
[21,"柳城县2026年少数民族发展资金-古砦仫佬族乡泗巷村古旭屯甘蔗产业基地道路建设项目","产业发展","产业园（区）",45,"泗巷村","产业路硬化长800米，宽4米，厚0.2米，路基、路肩",2026,130,346,"否","群众积极参与、改善生活生产条件、提高生活质量，项目建成后解决群众通行难问题","否","否","柳城县委统战部","柳城县委统战部","吴凯文","0772-7612400",45,45,0,"完成800m产业道路修建。"]
[22,"柳城县2026年少数民族发展资金-古砦仫佬族乡龙美村上陆屯优质稻产业基地道路硬化建设项目","产业发展","产业园（区）",20,"龙美村","修建甘蔗产业道路300米，宽3.5米，厚0.2米，路肩0.5米。",2026,110,192,"否","群众积极参与、改善生活生产条件、提高生活质量，项目建成后解决群众通行难问题","否","否","柳城县委统战部","柳城县委统战部","吴凯文","0772-7612400",20,20,0,"完成300m产业道路修建。"]
[23,"柳城县2026年少数民族发展资金-沙埔镇杨家山顶屯到太平路甘蔗产业配套设施建设项目","产业发展","产业园（区）",85,"大安村","硬化道路1.5公里，宽3.5米，厚0.2米，包括路基、路面、路肩、水沟涵洞、挡土墙等",2026,900,900,"否","通过修建道路能解决杨家山顶屯、老山顶屯等900人的农作物运输及耕种问题，增加农民收入。","否","否","柳城县委统战部","柳城县委统战部","吴凯文","0772-7612400",85,85,0,"通过项目建设，完成1.5公里道路硬化，解决杨家山顶屯、老山顶屯等900人的农作物运输及耕种问题，增加农民收入。"]
[24,"柳城县2026年少数民族发展资金-沙埔镇古仁村鸡母岭、平安土屯冲田优质稻产业道路硬化项目","产业发展","产业园（区）",25,"古仁村","硬化道路长0.5公里，宽3.5米，厚0.2米， 包括路基、路面、路肩、水沟涵洞、挡土墙等",2026,350,500,"是","群众积极参与，古仁村鸡母岭平安土屯冲田产业道路硬化项目建成后，解决350人出行农业生产困难问题","否","否","柳城县委统战部","柳城县委统战部","吴凯文","0772-7612400",25,25,0,"该项目建成后完善了平安土屯的基础设施建设，促进产业发展或方面群众出行，巩固脱贫成效。"]
[25,"冲脉镇冲脉社区冲脉屯水稻产业道路硬化","产业发展","产业园（区）",59.5,"冲脉社区","建设硬化道路长1200米，路面宽3.5米，厚0.2米，路基、路肩等",2026,1852,1852,"否","本项目针对冲脉社区旱改水项目区及周边200余亩农田、甘蔗地，道路硬化将极大改善792户农户（含脱贫户2户）的农业生产条件。有利于农业作业的运输，降低劳动强度，提高生产效益，巩固粮食主导产业地位","否","否","柳城县农业农村局","冲脉镇人民政府","黄城","0772-7741105",59.5,59.5,0,"完成1.2公里产业道路建设,解决贫困地792户1852人（其中脱贫户2户7人）出入主要产业区行路难问题，提高脱贫地区农业生产效率和利于农民增收。"]
[26,"冲脉镇米村村米村屯水稻产业道路硬化","产业发展","产业园（区）",55,"米村村","建设硬化道路长1100米，路面宽3.5米，厚0.2米，路基、路肩等",2026,692,692,"否","项目通过硬化米村屯水稻产业路，直接服务200亩水稻田的机械化耕作和粮食运输，解决181户农户（含脱贫户13户）的耕作困难问题。可降低水稻生产成本，提高种粮积极性，保障粮食安全，同时为稻田综合种养提供便利，建立“粮田通路-降本增效-稳粮增收”的良性机制。","否","否","柳城县农业农村局","冲脉镇人民政府","黄城","0772-7741105",55,55,0,"完成1.1公里产业道路建设,解决脱贫地区181户692人（其中脱贫户13户37人）出入主要产业区行路难问题，提高脱贫地区农业生产效率和利于农民增收。"]
[27,"冲脉镇大要村大奋屯甘蔗产业道路硬化","产业发展","产业园（区）",50,"大要村","建设硬化道路长1000米，路面宽3.5米，厚0.2米，路基、路肩等",2026,291,291,"是","本项目通过建设大奋屯农田产业路，有效解决120亩水稻和300亩其他作物（如甘蔗）的运输难题，直接惠及82户农户（含脱贫户22户）。道路硬化有利于推广农业机械化，提高粮食和经济作物的种植效益，降低因道路不畅导致的隐性成本，促进群众增收。","否","否","柳城县农业农村局","冲脉镇人民政府","黄城","0772-7741105",50,50,0,"完成1公里产业道路建设,解决贫困地82户291人（其中脱贫户22户63人）出入主要产业区行路难问题，提高脱贫地区农业生产效率和利于农民增收。"]
[28,"冲脉镇指挥村贡山屯甘蔗产业道路硬化","产业发展","产业园（区）",59,"指挥村","建设硬化道路长1200米，路面宽3.5米，厚0.2米，路基、路肩、会车台等",2026,428,428,"否","本项目通过建设贡山屯产业路，直接打通几百亩甘蔗的运输“最后一公里”，预计可为125户种植户（含脱贫户4户）每吨甘蔗节约运费成本，形成“产业路+甘蔗产业+农户”的紧密利益联结机制。","否","否","柳城县农业农村局","冲脉镇人民政府","黄城","0772-7741105",59,59,0,"完成1.2公里产业道路建设,解决贫困地125户428人（其中脱贫户4户14人）出入主要产业区行路难问题，提高脱贫地区农业生产效率和利于农民增收。"]
[29,"冲脉镇指挥村大伍屯洛发至大伍水库甘蔗产业道路硬化","产业发展","产业园（区）",45,"指挥村","建设硬化道路长800米，路面宽3.5米，厚0.2米，路基、路肩等",2026,1105,1105,"否","本项目通过硬化洛发至大伍水库的甘蔗产业路剩余未硬化路面，直接服务300亩甘蔗地的运输和管护工作，解决309户农户（含脱贫户20户）的实际困难。道路畅通有利于糖厂车辆进场收购，减少中间环节，保障蔗农利益，巩固甘蔗支柱产业。","否","否","柳城县农业农村局","冲脉镇人民政府","黄城","0772-7741105",45,45,0,"完成0.8公里产业道路建设,解决贫困地309户1105人（其中脱贫户20户69人）出入主要产业区行路难问题，提高脱贫地区农业生产效率和利于农民增收。"]
[30,"冲脉镇冲脉村瑞村屯白坭塘至鬼坝甘蔗产业道路硬化","产业发展","产业园（区）",50,"冲脉村","建设硬化产业道路长1000米，路面宽3.5米，厚0.2米，路基、路肩等",2026,1038,1038,"是","项目通过建设甘蔗产业道路，重点解决“白坭塘至鬼坝”片区蔗田交通不便问题，有效遏制耕地抛荒，恢复土地生产能力。项目将直接改善301户农户（含脱贫户50户）的生产条件，降低生产成本，建立“交通便捷-群众复耕-带动增收”的带农机制。","否","否","柳城县农业农村局","冲脉镇人民政府","黄城","0772-7741105",50,50,0,"完成1公里蔗田产业道路建设,解决脱贫地区301户1038人（其中脱贫户50户180人）主要产业区用水排水灌溉难问题，提高脱贫地区农业生产效率和利于农民增收。"]
[31,"冲脉镇冲脉村瑞村屯大塘至黄村屯、龙村屯甘蔗产业道路硬化","产业发展","产业园（区）",50,"冲脉村","建设硬化道路长1000米，路面宽3.5米，厚0.2米，路基、路肩等",2026,1038,1038,"是","项目通过建设瑞村屯产业路，直接服务700亩农作物（甘蔗等）的运输，为301户农户（含脱贫户50户）提供便捷、低成本的运输通道。可显著提升农业生产效率，降低生产资料运输成本，形成“通路-降本-增效-富民”的长效机制。","否","否","柳城县农业农村局","冲脉镇人民政府","黄城","0772-7741105",50,50,0,"完成1公里产业道路建设,解决贫困地301户1038人（其中脱贫户50户180人）出入主要产业区行路难问题，提高脱贫地区农业生产效率和利于农民增收。"]
[32,"冲脉镇冲脉社区冲脉屯甘蔗产业道路硬化","产业发展","产业园（区）",40,"冲脉社区","建设硬化道路长815米，路面宽3.5米，厚0.2米，路基、路肩等",2026,406,406,"否","项目针对冲脉屯甘蔗及特色产业运输需求，建设专用产业路，降低农产品无损运输损耗，直接保障119户农户（含脱贫户5户）的收益。同时，便利的交通有助于发展休闲采摘、农旅融合等新业态，拓展增收渠道，建立“特色产业-配套设施-多元增收”的富农机制。","否","否","柳城县农业农村局","冲脉镇人民政府","黄城","0772-7741105",40,40,0,"完成0.815公里产业道路建设,解决贫困地119户406人（其中脱贫户5户8人）出入主要产业区行路难问题，提高脱贫地区农业生产效率和利于农民增收。"]
[33,"冲脉镇米村村长山屯村西边甘蔗产业道路硬化","产业发展","产业园（区）",45,"米村村","建设硬化道路长850米，路面宽3.5米，厚0.2米，路基、路肩，涵管等",2026,448,448,"否","项目通过建设产业路，综合解决长山屯131户农户（含脱贫户9户）的出行需求。产业路直接服务于甘蔗运输保障了人员车辆安全，综合改善生产生活条件，提升抗灾能力，为农业产业健康发展保驾护航。","否","否","柳城县农业农村局","冲脉镇人民政府","黄城","0772-7741105",45,45,0,"完成0.85公里产业道路硬化,解决脱贫地区131户448人（其中脱贫户9户35人）出入主要产业区行路难问题，提高脱贫地区农业生产效率和利于农民增收。"]
[34,"大埔镇洛崖社区山咀屯枫树脚甘蔗产业道路硬化工程","产业发展","产业园（区）",52,"洛崖社区","硬化产业道路（包括涵管）长约1000米，宽3米，厚0.2米.",2026,226,1305,"否","群众积极参与，推动经济发展，增加群众经济收入。","否","否","柳城县农业农村局","大埔镇人民政府","罗杰文","0772-7618226",52,52,0,"项目建成后，带动周边甘蔗200余亩，水稻100余亩，方便生产运输，涉及226户1305人产业发展，增加群众收入。"]
[35,"凤山镇旧县村桥头屯甘蔗产业道路硬化项目","产业发展","产业园（区）",20,"旧县村","硬化道路长450米，宽4米，厚0.2米，含路肩。",2026,173,173,"否","群众积极参与，项目建成后，改善生产生活条件，促进产业发展，实现农民增收增产。","否","否","柳城县农业农村局","凤山镇人民政府","黄鑫祥","0772-7911213",20,20,0,"项目受益173人，改善农村生产条件，带动产业发展，增加农民收入。"]
[36,"凤山镇大湾村六贡屯至水汶甘蔗产业道路硬化项目","产业发展","产业园（区）",30,"大湾村","道路硬化500米长，4.5米宽，厚度0.2米。",2026,232,232,"否","群众积极参与，项目建成后，改善生产生活条件，促进产业发展，实现农民增收增产。","否","否","柳城县农业农村局","凤山镇人民政府","黄鑫祥","0772-7911213",30,30,0,"项目受益232人，改善农村生产条件，带动产业发展，增加农民收入。"]
[37,"凤山镇大湾村长旦屯引龙岭头至长岭田洞水稻产业道路建设项目","产业发展","产业园（区）",33,"大湾村","硬化道路长750米，宽3.5米，厚度0.2米。",2026,355,355,"否","群众积极参与，项目建成后，改善生产生活条件，促进产业发展，实现农民增收增产。","否","否","柳城县农业农村局","凤山镇人民政府","黄鑫祥","0772-7911213",33,33,0,"项目受益355人，改善农村生产条件，带动产业发展，增加农民收入。"]
[38,"凤山镇大湾村邦塘屯双高基地甘蔗产业道路建设项目","产业发展","产业园（区）",50,"大湾村","邦塘屯道路硬化长1000米，宽4米，厚度0.2米。",2026,320,320,"否","群众积极参与，项目建成后，改善生产生活条件，促进产业发展，实现农民增收增产。","否","否","柳城县农业农村局","凤山镇人民政府","黄鑫祥","0772-7911213",50,50,0,"项目受益320人，改善农村生产条件，带动产业发展，增加农民收入。"]
[39,"寨隆镇更祥村念日屯村背至辣椒洞甘蔗产业道路硬化","产业发展","产业园（区）",45,"更祥村","新建道路硬化长760米、宽3.5米、厚度0.2米，挡土墙、涵管等",2026,74,254,"是","改善念日屯的生产生活条件，促进产业发展，方便群众出行","否","否","柳城县农业农村局","寨隆镇人民政府","佟永恒","0772-3425826",45,45,0,"完成硬化道路760米，提高甘蔗产业生产效率和利于农民增收。"]
[40,"寨隆镇寨隆村仲村屯洗衣池至石场路甘蔗产业道路硬化","产业发展","产业园（区）",48,"寨隆村","新建道路硬化长850米、宽3.5米、厚度0.2米，挡土墙、涵管等",2026,291,1029,"否","改善仲村屯的生产生活条件，促进产业发展，方便群众出行","否","否","柳城县农业农村局","寨隆镇人民政府","佟永恒","0772-3425826",48,48,0,"完成硬化道路850米，提高甘蔗产业生产效率和利于农民增收。"]
[41,"寨隆镇下尧村龙旦屯至下尧屯甘蔗产业道路硬化","产业发展","产业园（区）",59,"下尧村","新建道路硬化长1100米、宽3.5米、厚度0.2米，挡土墙、涵管等",2026,135,463,"否","改善龙旦屯的生产生活条件，促进产业发展，方便群众出行","否","否","柳城县农业农村局","寨隆镇人民政府","佟永恒","0772-3425826",59,59,0,"完成硬化道路1100米，提高甘蔗产业生产效率和利于农民增收。"]
[42,"寨隆镇独石村山庄屯村头牛路至背翁甘蔗产业道路硬化","产业发展","产业园（区）",55,"独石村","新建道路硬化长1000米、宽3.5米、厚度0.2米，挡土墙、涵管等",2026,20,69,"否","改善山庄屯的生产生活条件，促进产业发展，方便群众出行","否","否","柳城县农业农村局","寨隆镇人民政府","佟永恒","0772-3425826",55,55,0,"完成硬化道路1000米，提高甘蔗产业生产效率和利于农民增收。"]
[43,"寨隆镇下寨村毛村屯环村甘蔗产业道路硬化","产业发展","产业园（区）",55,"下寨村","新建道路硬化长1000米、宽3.5米、厚度0.2米，挡土墙、涵管等",2026,119,417,"否","改善毛村屯的生产生活条件，促进产业发展，方便群众出行","否","否","柳城县农业农村局","寨隆镇人民政府","佟永恒","0772-3425826",55,55,0,"完成硬化道路1000米，提高甘蔗产业生产效率和利于农民增收。"]
[44,"寨隆镇更祥村炉村屯村背至社区老街甘蔗产业道路硬化","产业发展","产业园（区）",59,"更祥村","新建道路硬化长1050米、宽3.5米、厚度0.2米，挡土墙60、涵管等",2026,84,266,"是","改善炉村屯的生产生活条件，促进产业发展，方便群众出行","否","否","柳城县农业农村局","寨隆镇人民政府","佟永恒","0772-3425826",59,59,0,"完成硬化道路1050米，提高甘蔗产业生产效率和利于农民增收。"]
[45,"寨隆镇更祥村黄垌屯新桥至村头鱼塘甘蔗产业道路硬化","产业发展","产业园（区）",42,"更祥村","新建道路硬化长800米、宽3.5米、厚度0.2米，挡土墙、涵管等",2026,342,1125,"是","改善黄垌屯的生产生活条件，促进产业发展，方便群众出行","否","否","柳城县农业农村局","寨隆镇人民政府","佟永恒","0772-3425826",42,42,0,"完成硬化道路800米，提高甘蔗产业生产效率和利于农民增收。"]
[46,"寨隆镇下寨村土宿屯西边至龙善甘蔗产业道路硬化","产业发展","产业园（区）",70,"下寨村","新建道路硬化长1000米、宽3.5米、厚度0.2米，挡土墙、涵管等",2026,126,419,"否","改善土宿屯的生产生活条件，促进产业发展，方便群众出行","否","否","柳城县农业农村局","寨隆镇人民政府","佟永恒","0772-3425826",70,70,0,"完成硬化道路1000米，提高甘蔗产业生产效率和利于农民增收。"]
[47,"寨隆镇鸡楼村六岭屯老村至主干道甘蔗产业道带路硬化","产业发展","产业园（区）",65,"鸡楼村","新建道路硬化长1150米、宽3.5米、厚度0.2米，挡土墙、涵管等",2026,232,893,"否","改善六岭屯的生产生活条件，促进产业发展，方便群众出行。","否","否","柳城县农业农村局","寨隆镇人民政府","佟永恒","0772-3425826",65,65,0,"完成硬化道路1150米，提高甘蔗产业生产效率和利于农民增收。"]
[48,"寨隆镇独石村独石屯至山庄屯甘蔗产业道路硬化","产业发展","产业园（区）",45,"独石村","新建道路硬化长800米、宽3.5米、厚度0.2米，挡土墙、涵管等",2026,104,347,"否","改善独石屯的生产生活条件，促进产业发展，方便群众出行","否","否","柳城县农业农村局","寨隆镇人民政府","佟永恒","0772-3425826",45,45,0,"完成硬化道路800米，提高甘蔗产业生产效率和利于农民增收。"]
[49,"寨隆镇独石村安居屯可以至马头路甘蔗产业道路硬化","产业发展","产业园（区）",40,"独石村","新建道路硬化长600米、宽3.5米、厚度0.2米，挡土墙、涵管等",2026,136,480,"否","改善安居屯的生产生活条件，促进产业发展，方便群众出行","否","否","柳城县农业农村局","寨隆镇人民政府","佟永恒","0772-3425826",40,40,0,"完成硬化道路600米，提高甘蔗产业生产效率和利于农民增收。"]
[50,"寨隆镇寨隆村洞岩屯村头至铁路桥甘蔗产业道路硬化","产业发展","产业园（区）",55,"寨隆村","新建道路硬化长1000米、宽3.5米、厚度0.2米，挡土墙、涵管等",2026,107,332,"否","改善洞岩屯的生产生活条件，促进产业发展，方便群众出行","否","否","柳城县农业农村局","寨隆镇人民政府","佟永恒","0772-3425826",55,55,0,"完成硬化道路1000米，提高甘蔗产业生产效率和利于农民增收。"]
[51,"寨隆镇下尧村龙善屯甘蔗保护区产业道路硬化","产业发展","产业园（区）",55,"下尧村","新建道路硬化长850米、宽3.5米、厚度0.2米，挡土墙100米、涵管等",2026,200,634,"否","改善龙善屯的生产生活条件，促进产业发展，方便群众出行","否","否","柳城县农业农村局","寨隆镇人民政府","佟永恒","0772-3425826",55,55,0,"完成硬化道路850米，提高甘蔗产业生产效率和利于农民增收。"]
[52,"沙埔镇长隆村拱桥至同裕屯芦笋基地产业道路硬化","产业发展","产业园（区）",94,"长隆村","硬化道路长1.7公里，宽3.5米，厚0.2米， 包括路基、路面、路肩、水沟涵洞、挡土墙等",2026,350,800,"否","通过修建道路能解决拱桥、同裕屯800人的农作物运输及耕种问题，增加农民收入。","否","否","柳城县农业农村局","沙埔镇人民政府","黄超云","0772-7011413",94,94,0,"该项目建成后完善了拱桥至同裕屯的基础设施建设，促进芦笋产业发展及方面群众出行，巩固脱贫成效。"]
[53,"沙埔镇古仁村罗陈家屯太冲田优质稻产业道路硬化","产业发展","产业园（区）",85,"古仁村","硬化道路1.5公里，宽3.5米，厚0.2米，包括路基、路面、路肩、水沟涵洞、挡土墙等",2026,168,168,"是","群众积极参与，古仁村罗陈家屯太冲田产业道路硬化项目建成后，解决168人出行、农作物运输及耕种问题，增加农民收入。","否","否","柳城县农业农村局","沙埔镇人民政府","黄超云","0772-7011413",85,85,0,"该项目建成后完善了罗陈家屯的基础设施建设，促进产业发展或方面群众出行，巩固脱贫成效。"]
[54,"沙埔镇沙埔村潭竹屯甘蔗产业道路","产业发展","产业园（区）",90,"沙埔村","硬化道路1.7公里，宽3.5米，厚0.2米，包括路基、路面、路肩、水沟涵洞、挡土墙等",2026,580,700,"否","通过修建道路能解决潭竹屯580人的农作物运输及耕种问题，增加农民收入。","否","否","柳城县农业农村局","沙埔镇人民政府","黄超云","0772-7011413",90,90,0,"该项目建成后完善了潭竹屯的基础设施建设，促进产业发展或方面群众出行，巩固脱贫成效。"]
[55,"沙埔镇上雷村上榴屯至下榴屯甘蔗产业产业道路","产业发展","产业园（区）",53,"上雷村","硬化道路长0.95公里，宽3.5米，厚0.2米，包括路基、路面、路肩、水沟涵洞、挡土墙、错车道等",2026,1100,1500,"否","群众积极参与、改善生活生产条件、提高生活质量，项目建成后解决1000人农产品生产和运输问题","否","否","柳城县农业农村局","沙埔镇人民政府","黄超云","0772-7011413",53,53,0,"该项目硬化路面长0.95公里项目建成后完善了上榴屯、下榴屯产业的基础设施建设，促进产业发展或方面群众出行，巩固脱贫成效。"]
[56,"沙埔镇碑田村新潭景屯、老潭景屯、碑田屯甘蔗产业道路","产业发展","产业园（区）",59.5,"碑田村","硬化道路长1.1公里，宽3.5米，厚0.2米，包括路基、路面、路肩、水沟涵洞、挡土墙、错车道等",2026,591,591,"否","群众积极参与、改善生活生产条件、提高生活质量，项目建成后解决591人农产品生产和运输问题","否","否","柳城县农业农村局","沙埔镇人民政府","黄超云","0772-7011413",59.5,59.5,0,"该项目建成后完善了新谭景、老谭景、碑田屯的基础设施建设，促进产业发展或方面群众出行，巩固脱贫成效。"]
[57,"沙埔镇长隆村水美屯甘蔗产业道路","产业发展","产业园（区）",28,"长隆村","硬化道路长0.6公里，宽3.5米，厚0.2米，包括路基、路面、路肩、水沟涵洞、挡土墙、错车道等",2026,276,395,"否","通过修建道路能解决水美屯395人的农作物运输及耕种问题，增加农民收入。","否","否","柳城县农业农村局","沙埔镇人民政府","黄超云","0772-7011413",28,28,0,"通过项目建设能解决水美屯屯395人的农作物运输及耕种问题，增加农民收入。"]
[58,"六塘镇黄冲村大朝屯甘蔗产业道路硬化","产业发展","产业园（区）",60,"黄冲村","硬化道路长1000米，路面4.5米，厚0.2米，路肩各0.5米。",2026,1300,1800,null,"项目带动群众参与，路通业兴，精准带贫增收致富。产业覆盖的甘蔗面积450亩，水稻300亩，桑叶70亩。建成后，解决1800人出行、产业交通难题","否","否","柳城县农业农村局","六塘镇人民政府","郭琳","0772-7711213",60,60,0,"黄冲村产业道路硬化项目建成后，解决1800名群众出行和农产品运输难题。"]
[59,"六塘镇拉燕村冲聋至上乐寨甘蔗道路硬化","产业发展","产业园（区）",42,"拉燕村","硬化路面长800米、路面宽4米、厚20厘米，压实砂石基层厚10厘米；两边培路肩宽各0.5米；合理设置涵洞、边沟、错车道等",2026,600,1100,"否","项目带动群众参与，路通业兴，精准带贫增收致富。产业覆盖的甘蔗面积400亩。建成后，解决1100人出行、产业交通难题","否","否","柳城县农业农村局","六塘镇人民政府","郭琳","0772-7711213",42,42,0,"拉燕村产业道路硬化项目建成后，解决1100名群众出行和农产品运输难题。"]
[60,"古砦仫佬族乡泗巷村古旭屯优质稻产业道路硬化建设项目","产业发展","产业园（区）",45,"泗巷村","产业路硬化长800米，宽3.5米，厚0.2米，路基、路肩。",2026,130,346,"否","群众积极参与、改善生活生产条件、提高生活质量，项目建成后解决群众通行难问题","否","否","柳城县农业农村局","古砦仫佬族乡人民政府","全新结","0772-7611213",30,30,0,"完成修建产业路硬化800m，解决群众通行难问题。"]
[61,"古砦仫佬族乡龙袍村小王屯优质稻产业道路硬化建设项目","产业发展","产业园（区）",50,"龙袍村","新建产业路长800米，宽3.5米，厚0.2米，路基、路肩、错车台等",2026,60,220,"否","群众积极参与、改善生活生产条件、提高生活质量，项目建成后解决群众通行难问题","否","否","柳城县农业农村局","古砦仫佬族乡人民政府","全新结","0772-7611213",50,50,0,"完成修建产业路硬化800m，解决群众通行难问题。"]
[62,"古砦仫佬族乡龙美村中团屯优质稻产业道路硬化建设项目","产业发展","产业园（区）",25,"龙美村","新建硬化道路330米，宽3.5米，厚0.2米，路基、路肩、错车台等。",2026,210,379,"否","群众积极参与、改善生活生产条件、提高生活质量，项目建成后解决群众通行难问题","否","否","柳城县农业农村局","古砦仫佬族乡人民政府","全新结","0772-7611213",20,20,0,"完成修建产业路硬化330m，解决群众通行难问题。"]
[63,"古砦仫佬族乡古砦村古砦街屯优质稻产业道路建设项目","产业发展","产业园（区）",90,"古砦村","产业道路长1500米，宽3.5米，道路两侧0.5米宽，高0.5m挡土墙",2026,230,641,"否","群众积极参与、改善生活生产条件、提高生活质量，项目建成后解决群众通行难问题","否","否","柳城县农业农村局","古砦仫佬族乡人民政府","全新结","0772-7611213",100,100,0,"完成修建产业路硬化1500m，解决群众通行难问题。"]
[64,"古砦仫佬族乡上富村长峒屯新建优质稻产业道路硬化项目","产业发展","产业园（区）",40,"上富村","新建产业路500米，宽3.5米，含路肩、错车台。",2026,21,46,"是","群众积极参与、改善生活生产条件、提高生活质量，项目建成后解决群众通行难问题","否","否","柳城县农业农村局","古砦仫佬族乡人民政府","全新结","0772-7611213",40,40,0,"完成修建产业路硬化500m，解决群众通行难问题。"]
[65,"太平镇龙兴村上塘屯大米蔬菜种植基地产业道路硬化","产业发展","产业园（区）",65,"龙兴村","在上塘屯道路硬化约1.13公里长，3.5M宽",2026,321,321,"否","群众积极参与，投工投劳，项目建设后可改善村民的出行条件，提升该村农业生产条件，改善约500亩甘蔗、水稻作物灌溉条件，助农增收，受益农户83户，321人，其中脱贫人口7户，28人。","否","否","柳城县农业农村局","太平镇人民政府","韦俏爽","0772-7051213",65,65,0,"通过硬化村屯道路约1.13公里，在施工过程中提供务工就业岗位，群众积极参与，投工投劳，改善村民出行条件，改善约500亩甘蔗、水稻作物灌溉条件，提升该村农业生产条件，助农增收，受益农户83户，321人，其中脱贫人口7户，28人。"]
[66,"社冲乡洛文村新村屯糖料蔗高产示范基地建设","产业发展","产业园（区）",120,"社冲村","建设糖料蔗高产示范基地1500亩，其中机井1口，变压器1台（20-30万），泵房一座，高位水池2座（按200立方/500亩蔗田做计划，8-10万），直径91厘米的PE输水管道10KM。",2026,530,1700,"否","建设蔗区灌溉系统，通过“政府引导+龙头企业+农户”多方联动模式，提升蔗区产量与品质，降低生产成本，建立可持续的联农带农富农机制，农户就业致富、产业提质增效、企业提产增收。","否","否","柳城县糖业发展服务中心","柳城县社冲乡人民政府","韦柳园","0772-2465977",120,120,0,"该项目建成后，可解决片区内蔗田灌排灌需求，提高甘蔗单产。"]
[67,"社冲乡仓贝村银村屯汶头屯双高基地修缮项目","产业发展","产业园（区）",20,"仓贝村","修缮管网、水泵及闸阀井，安装发电机组1套，更换水泵1套，修缮管道3000米，覆盖甘蔗种植面积7000亩。",2026,110,350,"否","建设蔗区灌溉系统，通过“政府引导+龙头企业+农户”多方联动模式，提升蔗区产量与品质，降低生产成本，建立可持续的联农带农富农机制，农户就业致富、产业提质增效、企业提产增收。","否","否","柳城县糖业发展服务中心","柳城县社冲乡人民政府","韦柳园","0772-2465977",20,20,0,"该项目建成后，可解决片区内蔗田灌排灌需求，提高甘蔗单产。"]
[68,"社冲乡仓贝村下堡门屯双高基地修缮项目","产业发展","产业园（区）",20,"仓贝村","修缮管网、水泵及闸阀井，安装发电机组1套，更换水泵1套，修缮管道3000米，覆盖甘蔗种植面积4000亩",2026,170,560,"否","建设蔗区灌溉系统，通过“政府引导+龙头企业+农户”多方联动模式，提升蔗区产量与品质，降低生产成本，建立可持续的联农带农富农机制，农户就业致富、产业提质增效、企业提产增收。","否","否","柳城县糖业发展服务中心","柳城县社冲乡人民政府","韦柳园","0772-2465977",20,20,0,"该项目建成后，可解决片区内蔗田灌排灌需求，提高甘蔗单产。"]
[69,"寨隆镇下尧村龙善片区糖料蔗高产示范基地建设","产业发展","产业园（区）",60,"下尧村","灌溉系统：建设糖料蔗高产示范基地250亩，其中机井一口（12-15万），变压器1台（20-30万），泵房一座（7-8万），高位水池一座（按200立方/500亩蔗田做计划，8-10万），直径90厘米的PE输水管道3KM。",2026,86,86,"否","建设蔗区灌溉系统，通过“政府引导+龙头企业+农户”多方联动模式，提升蔗区产量与品质，降低生产成本，建立可持续的联农带农富农机制，农户就业致富、产业提质增效、企业提产增收。  ","否","否","柳城县糖业发展服务中心","柳城县寨隆镇人民政府","陈慧",3425826,60,60,0,"该项目建成后，可解决片区内蔗田灌排灌需求，提高甘蔗单产。"]
[70,"冲脉镇指挥村大伍屯糖料蔗高产示范基地建设","产业发展","产业园（区）",50,"指挥村","建设糖料蔗高产示范基地200亩，其中机井一口，变压器1台，泵房一座，高位水池一座，直径90厘米的PE输水管道3KM。",2026,178,178,"否","建设蔗区灌溉系统，通过“政府引导+龙头企业+农户”多方联动模式，提升蔗区产量与品质，降低生产成本，建立可持续的联农带农富农机制，农户就业致富、产业提质增效、企业提产增收。 ","否","否","柳城县糖业发展服务中心","冲脉镇人民政府","张锦明","0772-7741213",120,120,0,"该项目建成后，可解决片区内蔗田灌排灌需求，提高甘蔗单产。"]
[71,"六塘镇中团村大旦屯糖料蔗高产示范基地建设","产业发展","产业园（区）",300,"中团村","建设糖料蔗高产示范基地450亩，修建2000米排水沟，2口水井，1个泵房，2座高位水塔",2026,500,692,"否","建设蔗区灌溉系统，通过“政府引导+龙头企业+农户”多方联动模式，提升蔗区产量与品质，降低生产成本，建立可持续的联农带农富农机制，农户就业致富、产业提质增效、企业提产增收。","否","否","柳城县糖业发展服务中心","柳城县六塘镇人民政府","吕伟华","0772-7711213",300,300,0,"该项目建成后，可解决片区内蔗田灌排灌需求，提高甘蔗单产。"]
[72,"六塘镇中团村查岩屯糖料蔗高产示范基地建设","产业发展","产业园（区）",230,"中团村","建设糖料蔗高产示范基地800亩，修建建设管网，1个泵房，1口井，2座高位水塔，排水渠400米",2026,400,826,"否","建设蔗区灌溉系统，通过“政府引导+龙头企业+农户”多方联动模式，提升蔗区产量与品质，降低生产成本，建立可持续的联农带农富农机制，农户就业致富、产业提质增效、企业提产增收。","否","否","柳城县糖业发展服务中心","柳城县六塘镇人民政府","吕伟华","0772-7711213",230,230,0,"该项目建成后，可解决片区内蔗田灌排灌需求，提高甘蔗单产。"]
[73,"六塘镇中团村北楞屯糖料蔗高产示范基地建设","产业发展","产业园（区）",210,"中团村","建设糖料蔗高产示范基地1000亩，修缮管网及泵房，建高位水塔2座，三面光水渠500米",2026,700,969,"否","建设蔗区灌溉系统，通过“政府引导+龙头企业+农户”多方联动模式，提升蔗区产量与品质，降低生产成本，建立可持续的联农带农富农机制，农户就业致富、产业提质增效、企业提产增收。","否","否","柳城县糖业发展服务中心","柳城县六塘镇人民政府","吕伟华","0772-7711213",210,210,0,"该项目建成后，可解决片区内蔗田灌排灌需求，提高甘蔗单产。"]
[74,"大埔镇田垌村眷村屯糖料蔗高产示范基地建设","产业发展","产业园（区）",110,"田垌村","建设糖料蔗高产示范基地550亩，其中机井一口（12-15万），变压器1台（20-30万），泵房一座（7-8万），高位水池一座（按200立方/500亩蔗田做计划，8-10万），直径90厘米的PE输水管道10KM，排水沟渠。",2026,480,480,"是","建设蔗区灌溉系统，通过“政府引导+龙头企业+农户”多方联动模式，提升蔗区产量与品质，降低生产成本，建立可持续的联农带农富农机制，农户就业致富、产业提质增效、企业提产增收。","否","否","柳城县糖业发展服务中心","柳城县大埔镇人民政府","罗杰文","0772—7618189",110,110,0,"该项目建成后，可解决片区内蔗田灌排灌需求，提高甘蔗单产。"]
[75,"大埔镇田垌村鸦鹊屯糖料蔗高产示范基地建设","产业发展","产业园（区）",50,"田垌村","建设糖料蔗高产示范基地200亩，其中机井一口（12-15万），变压器1台（20-30万），泵房一座（7-8万），高位水池一座（按200立方/500亩蔗田做计划，8-10万），直径90厘米的PE输水管道1.8KM，排水沟渠。",2026,500,500,"是","建设蔗区灌溉系统，通过“政府引导+龙头企业+农户”多方联动模式，提升蔗区产量与品质，降低生产成本，建立可持续的联农带农富农机制，农户就业致富、产业提质增效、企业提产增收。","否","否","柳城县糖业发展服务中心","柳城县大埔镇人民政府","罗杰文","0772—7618189",50,50,0,"该项目建成后，可解决片区内蔗田灌排灌需求，提高甘蔗单产。"]
[76,"大埔镇同境村古婆屯糖料蔗高产示范基地建设","产业发展","产业园（区）",40,"同境村","建设糖料蔗高产示范基地160亩，其中机井一口（12-15万），变压器1台（20-30万），泵房一座（7-8万），高位水池一座（按200立方/500亩蔗田做计划，8-10万），直径90厘米的PE输水管道0.8KM，修建0.8KM排水沟。",2026,420,420,"是","建设蔗区灌溉系统，通过“政府引导+龙头企业+农户”多方联动模式，提升蔗区产量与品质，降低生产成本，建立可持续的联农带农富农机制，农户就业致富、产业提质增效、企业提产增收。","否","否","柳城县糖业发展服务中心","柳城县大埔镇人民政府","罗杰文","0772—7618189",40,40,0,"该项目建成后，可解决片区内蔗田灌排灌需求，提高甘蔗单产。"]
[77,"龙头镇伏虎村上罗屯糖料蔗高产示范基地建设","产业发展","产业园（区）",17.5,"伏虎村","建设糖料蔗高产示范基地70亩。其中机井一口，变压器1台，泵房一座，高位水池一座，直径90厘米的PE输水管道。",2026,50,150,"否","建设蔗区灌溉系统，通过“政府引导+龙头企业+农户”多方联动模式，提升蔗区产量与品质，降低生产成本，建立可持续的联农带农富农机制，农户就业致富、产业提质增效、企业提产增收。","否","否","柳城县糖业发展服务中心","柳城县龙头镇人民政府","黄阳丽","0772-7871213",17.5,17.5,0,"该项目建成后，可解决片区内蔗田灌排灌需求，提高甘蔗单产。"]
[78,"龙头镇伏虎村太坪屯糖料蔗高产示范基地建设","产业发展","产业园（区）",87.5,"伏虎村","建设糖料蔗高产示范基地350亩。其中机井一口，变压器1台，泵房一座，高位水池一座，直径90厘米的PE输水管道。",2026,300,500,"否","建设蔗区灌溉系统，通过“政府引导+龙头企业+农户”多方联动模式，提升蔗区产量与品质，降低生产成本，建立可持续的联农带农富农机制，农户就业致富、产业提质增效、企业提产增收。","否","否","柳城县糖业发展服务中心","柳城县龙头镇人民政府","黄阳丽","0772-7871213",87.5,87.5,0,"该项目建成后，可解决片区内蔗田灌排灌需求，提高甘蔗单产。"]
[79,"龙头镇码头村码头屯糖料蔗高产示范基地建设","产业发展","产业园（区）",100,"码头村","建设糖料蔗高产示范基地400亩。其中机井一口，变压器1台，泵房一座，高位水池一座，直径90厘米的PE输水管道。",2026,200,400,"否","建设蔗区灌溉系统，通过“政府引导+龙头企业+农户”多方联动模式，提升蔗区产量与品质，降低生产成本，建立可持续的联农带农富农机制，农户就业致富、产业提质增效、企业提产增收。","否","否","柳城县糖业发展服务中心","柳城县龙头镇人民政府","黄阳丽","0772-7871213",100,100,0,"该项目建成后，可解决片区内蔗田灌排灌需求，提高甘蔗单产。"]
[80,"龙头镇旗山村上里屯糖料蔗高产示范基地建设","产业发展","产业园（区）",25,"旗山村","建设糖料蔗高产示范基地100亩。其中机井一口，变压器1台，泵房一座，高位水池一座，直径90厘米的PE输水管道。",2026,100,200,"否","建设蔗区灌溉系统，通过“政府引导+龙头企业+农户”多方联动模式，提升蔗区产量与品质，降低生产成本，建立可持续的联农带农富农机制，农户就业致富、产业提质增效、企业提产增收。","否","否","柳城县糖业发展服务中心","柳城县龙头镇人民政府","黄阳丽","0772-7871213",25,25,0,"该项目建成后，可解决片区内蔗田灌排灌需求，提高甘蔗单产。"]
[81,"龙头镇隆水村邬家屯农田灌溉水渠建设","产业发展","产业园（区）",45,"隆水村","邬家13队水渠三面光硬化，总长度1500米，内空40cm*40cm,",2026,274,274,"否","群众积极支持，项目建成后解决农作物灌溉问题，改善生活生产条件、提高生活质量。","否","否","柳城县农业农村局","柳城县龙头镇人民政府","黄阳丽","0772-7871213",45,45,0,"项目受益75户274人，改善农村生产条件，带动产业发展，增加农民收入。"]
[82,"龙头镇田厂村赵家屯、旗山村下里屯农田灌溉水渠建设","产业发展","产业园（区）",58,"田厂村、旗山村","赵家屯水渠三面光硬化，总长度1000米，内空40cm*40cm,旗山村下里屯灌溉渠长900米，内空40*40",2026,421,421,"否","群众积极支持，项目建成后解决农作物灌溉问题，改善生活生产条件、提高生活质量。","否","否","柳城县农业农村局","柳城县龙头镇人民政府","黄阳丽","0772-7871213",58,58,0,"项目受益98户421人，改善农村生产条件，带动产业发展，增加农民收入。"]
[83,"龙头镇伏虎村上罗屯、曲江屯、木村屯、伏虎屯农田灌溉水渠建设","产业发展","产业园（区）",57,"伏虎村","1.西山塘至红圈岭路，三面光灌溉沟，长300米，宽60厘米，高50厘米。\n2.西山塘到山嘴，三面光灌溉沟，长200米，宽60厘米，高50厘米\n3.田洞到拱桥三面光灌溉沟，长600米，宽35厘米，高40厘米\n4.石壁冲三面光灌溉沟，长800米，宽40公分，高60公分",2026,879,879,"否","群众积极支持，项目建成后解决农作物灌溉问题，改善生活生产条件、提高生活质量。","否","否","柳城县农业农村局","柳城县龙头镇人民政府","黄阳丽","0772-7871213",57,57,0,"项目受益204户1021人，改善农村生产条件，带动产业发展，增加农民收入。"]
[84,"龙头镇新村村罗村屯、新村屯农田灌溉水渠建设","产业发展","产业园（区）",58,"新村村","1.原有水沟水渠三面光硬化，总长度1000米，内空40cm*40cm\n2.新村屯三面光水沟共长1000米，内空40cm*40cm",2026,392,392,"否","群众积极支持，项目建成后解决农作物灌溉问题，改善生活生产条件、提高生活质量。","否","否","柳城县农业农村局","柳城县龙头镇人民政府","黄阳丽","0772-7871213",58,58,0,"项目受益87户392人，改善农村生产条件，带动产业发展，增加农民收入。"]
[85,"沙埔镇古仁村谷罗山屯糖料蔗高产示范基地建设","产业发展","产业区",300,"古仁村","新建抽水泵房4间、管理房2间48万元、变压器1台30万元、高位水池1座40万元、输水管道180万元。",2026,1766,1766,"是","建设蔗区灌溉系统，通过“政府引导+龙头企业+农户”多方联动模式，提升蔗区产量与品质，降低生产成本，建立可持续的联农带农富农机制，农户就业致富、产业提质增效、企业提产增收。","否","否","柳城县糖业发展服务中心","柳城县沙埔镇人民政府","杨延飞","0772-7011413",300,300,0,"该项目建成后，可解决片区内蔗田灌排灌需求，提高甘蔗单产。"]
[86,"沙埔镇碑田村丈八屯糖料蔗高产示范基地建设","产业发展","产业区",30,"碑田村","新建抽水泵房1间、抽水泵8万元、高位水池150立方9万元、90PE输水管7000米13万元。",2026,540,540,"否","建设蔗区灌溉系统，通过“政府引导+龙头企业+农户”多方联动模式，提升蔗区产量与品质，降低生产成本，建立可持续的联农带农富农机制，农户就业致富、产业提质增效、企业提产增收。","否","否","柳城县糖业发展服务中心","柳城县沙埔镇人民政府","杨延飞","0772-7011413",30,30,0,"该项目建成后，可解决片区内蔗田灌排灌需求，提高甘蔗单产。"]
[87,"太平镇太平园艺场甘蔗产业配套设施建设","产业发展","产业园（区）",120,"太平村","建设糖料蔗高产示范基地310亩。其中机井2口，变压器1台，泵房一座，高位水池2座，直径90厘米的PE输水管道。",2026,50,906,"否","建设蔗区灌溉系统，通过“政府引导+龙头企业+农户”多方联动模式，提升蔗区产量与品质，降低生产成本，建立可持续的联农带农富农机制，农户就业致富、产业提质增效、企业提产增收。","否","否","柳城县糖业发展服务中心","太平镇人民政府","郑秋洪","0772-7051213",62,62,0,"该项目建成后，可解决片区内蔗田灌排灌需求，提高甘蔗单产。"]
[88,"太平镇龙兴村中杨屯甘蔗产业配套设施建设","产业发展","产业园（区）",70,"龙兴村","建设糖料蔗高产示范基地200亩。其中机井1口，变压器1台，泵房1座，高位水池1座，直径90厘米的PE输水管道。",2026,30,540,"否","建设蔗区灌溉系统，通过“政府引导+龙头企业+农户”多方联动模式，提升蔗区产量与品质，降低生产成本，建立可持续的联农带农富农机制，农户就业致富、产业提质增效、企业提产增收。","否","否","柳城县糖业发展服务中心","太平镇人民政府","郑秋洪","0772-7051213",40,40,0,"该项目建成后，可解决片区内蔗田灌排灌需求，提高甘蔗单产。"]
[89,"太平镇上火村赤罗屯甘蔗产业配套设施建设","产业发展","产业园（区）",30,"上火村","建设糖料蔗高产示范基地50亩。其中变压器1台，泵房一座，高位水池一座，直径90厘米的PE输水管道。",2026,30,925,"否","建设蔗区灌溉系统，通过“政府引导+龙头企业+农户”多方联动模式，提升蔗区产量与品质，降低生产成本，建立可持续的联农带农富农机制，农户就业致富、产业提质增效、企业提产增收。","否","否","柳城县糖业发展服务中心","太平镇人民政府","郑秋洪","0772-7051213",12,12,0,"该项目建成后，可解决片区内蔗田灌排灌需求，提高甘蔗单产。"]
[90,"柳城县2026年少数民族发展资金-东泉镇螺田村优质稻产业基地灌溉设施建设项目","产业发展","小型农田水利设施建设",50,"螺田村","新建三面光水渠长1700米，宽0.5米，高0.6米。",2026,2150,3080,"否","方便群众灌溉，进一步改善生产生活环境，提高满意度。","否","否","柳城县委统战部","柳城县委统战部","吴凯文","0772-7612400",50,50,0,"完成水渠建设，提升农田灌溉能力和面积"]
[91,"柳城县2026年少数民族发展资金-东泉镇雷塘村连塘屯优质稻产业基地灌溉设施建设项目","产业发展","小型农田水利设施建设",50,"雷塘村","新建三面光水渠长1200米，宽0.8米，高0.8米。",2026,832,1254,"是","方便群众灌溉，进一步改善生产生活环境，提高满意度。","否","否","柳城县委统战部","柳城县委统战部","吴凯文","0772-7612400",50,50,0,"完成水渠建设，提升农田灌溉能力和面积"]
[92,"凤山镇二塘村肉鸡养殖基地产业配套设施","产业发展","小型农田水利设施建设",58,"二塘村","1.硬化产业道路长564米，路基宽6米，硬化路面4米，厚度0.2米；\n2. C20混凝土浇筑水渠600米，内空0.6*0.6米，沟底厚0.1米。",2026,135,135,"否","群众积极参与，项目建成后，生产生活条件，促进产业发展，方便群众出行，实现农民增收增产。","否","否","柳城县农业农村局","凤山镇人民政府","黄鑫祥","0772-7911213",58,58,0,"项目受益39户135人，其中脱贫户7户34人，改善农村生产条件，带动产业发展，增加农民收入。"]
[93,"凤山镇凤山村1级站至2级站灌溉设施建设","产业发展","小型农田水利设施建设",20,"凤山村","安装长2500米，直径25公分水管",2026,2149,2149,"否","群众积极参与，项目建成后解决群众生产用水，加速凤山镇凤山村的经济发展步伐，增加群众的经济收入，提高村民群众幸福感和满意度。项目受益群众2149人。","否","否","柳城县农业农村局","凤山镇人民政府","黄鑫祥","0772-7911213",20,20,0,"项目受益715户2149人，其中脱贫户46户132人，解决耕地，农田用水问题，解决增加农民收入。"]
[94,"凤山镇二塘村新村屯水稻产业配套灌溉设施建设","产业发展","小型农田水利设施建设",98,"二塘村","修建三面光灌溉水渠长3600米，规格为衬砌周长1.2米，底厚0.1米，过沟盖板16处，下田坡道8处，挡土墙一处，长20米，高5米",2026,487,487,"否","群众积极参与，项目建成后解决群众生产用水和运输问题，加速凤山镇二塘村的经济发展步伐，增加群众的经济收入，提高村民群众幸福感和满意度。项目受益群众487人。","否","否","柳城县农业农村局","凤山镇人民政府","韦耐文","0772-7911213",98,98,0,"项目受益136户487人，其中脱贫户19户26人，解决高标农田用水和农用机械进出道路通车问题，改善农村基础设施，提高高标农田生产场地规范化，减少农田撂荒，增加农民收入。"]
[95,"凤山镇思练村思练屯甘蔗产业配套设施","产业发展","小型农田水利设施建设",15,"思练村","道路硬化长200米、宽3米、厚度0.2米；挡土墙长100米、宽1米、高2米；排水沟长100米、高0.6米、宽0.4米。",2026,510,510,"否","群众积极参与，项目建成后解决群众生产用水和运输问题，加速凤山镇思练村的经济发展步伐，增加群众的经济收入，提高村民群众幸福感和满意度。项目受益群众510人。","否","否","柳城县农业农村局","凤山镇人民政府","黄鑫祥","0772-7911213",15,15,0,"项目受益510人，改善农村生产条件，带动产业发展，增加农民收入。"]
[96,"凤山镇大湾村长旦屯水稻产业配套设施灌溉水渠建设","产业发展","小型农田水利设施建设",18,"大湾村","灌溉水渠硬化长300米、宽0.6米、高0.6米",2026,355,355,"否","群众积极参与，项目建成后，改善生产生活条件，促进产业发展，实现农民增收增产。","否","否","柳城县农业农村局","凤山镇人民政府","黄鑫祥","0772-7911213",18,18,0,"项目建成后，可解决当地355人主要产业区灌溉问题，提高当地农业生产效率和利于农民增收。"]
[97,"凤山镇大湾村良村屯水稻产业配套设施灌溉水渠建设","产业发展","小型农田水利设施建设",42,"大湾村","灌溉水渠硬化长800米、宽0.6米、高0.6米",2026,600,600,"否","群众积极参与，项目建成后，改善生产生活条件，促进产业发展，实现农民增收增产。","否","否","柳城县农业农村局","凤山镇人民政府","黄鑫祥","0772-7911213",42,42,0,"项目建成后，可解决当地600人主要产业区灌溉问题，提高当地农业生产效率和利于农民增收。"]
[98,"冲脉镇冲恩村北岸屯水稻产业配套灌溉设施建设","产业发展","小型农田水利设施建设",59,"冲恩村","建设硬化水沟长1150米，水沟规格为0.6m*0.6m，厚0.4米、机械过沟渠盖板、人行盖板、涵管等",2026,346,346,"否","本项目通过建设标准灌溉水渠，有效解决北岸屯水稻、甘蔗等粮食作物的“灌溉难”问题，增强抗旱防涝能力，保障95户农户（含脱贫户4户）稳产增收。完善的灌溉设施推动发展高附加值农产品产业发展，吸引农业投资，建立“保灌溉、稳产量、促发展”的联农带农模式。","否","否","柳城县农业农村局","冲脉镇人民政府","黄城","0772-7741105",59,59,0,"完成1.15公里产业灌溉水渠建设,解决脱贫地区95户346人（其中脱贫户4户10人）主要产业区用水排水灌溉难问题，提高脱贫地区农业生产效率和利于农民增收。"]
[99,"冲脉镇冲脉村黄村屯至龙村屯甘蔗产业配套灌溉设施建设","产业发展","小型农田水利设施建设",55,"冲脉村","硬化三段水沟，长1000米，水沟规格为0.6*0.6m，厚0.4米",2026,273,273,"是","项目聚焦完善黄村屯至龙村屯片区排水系统，重点解决300余亩农田（以甘蔗为主）的内涝灾害，保护耕地资源，预计可使受影响耕地恢复正常产能。通过改善生产条件，可引导农户从传统甘蔗种植向水稻等更多元、高效的作物转型，直接保障72户农户（含脱贫户12户）的生产安全与收入稳定。","否","否","柳城县农业农村局","冲脉镇人民政府","黄城","0772-7741105",55,55,0,"完成1公里产业灌溉水渠建设,解决脱贫地区72户273人（其中脱贫户12户57人）主要产业区用水排水灌溉难问题，提高脱贫地区农业生产效率和利于农民增收。"]
[100,"冲脉镇冲恩上全屯蔬菜产业配套灌溉设施建设","产业发展","小型农田水利设施建设",50,"冲恩村","建设硬化水沟长800米，水沟规格为0.6m*0.6m，厚0.4米、机械过沟渠盖板、人行盖板、涵管等",2026,129,129,"否","本项目通过为上全屯连片蔬菜基地配套建设标准化灌溉水渠，可实现灌溉方便、节水增效，帮助37户菜农（含脱贫户4户）应对季节性干旱，保障蔬菜稳定供应。完善的设施是打造“菜篮子”基地、对接超市和批发市场的关键，可推动形成“合作社+基地+农户”的产业化经营模式。","否","否","柳城县农业农村局","冲脉镇人民政府","黄城","0772-7741105",50,50,0,"完成0.8公里产业灌溉水渠建设,解决脱贫地区37户129人（其中脱贫户4户12人）主要产业区用水排水灌溉难问题，提高脱贫地区农业生产效率和利于农民增收。"]
[101,"冲脉镇大要村茶村屯甘蔗产业配套灌溉设施建设","产业发展","小型农田水利设施建设",59,"大要村","建设硬化水沟长2000米，水沟规格为0.4m*0.4m，厚0.2米",2026,377,377,"是","完成2公里产业灌溉水渠建设,解决贫困地区104户377人（其中脱贫户18户39人）项目建成后，茶村屯基础设施得到明显改善提升，促进产业发展类，为推动建设自治区乡村振兴重点村打下基础。","否","否","柳城县农业农村局","冲脉镇人民政府","黄城","0772-7741105",59,59,0,"完成2公里产业排灌水渠建设,解决脱贫地区104户377人（其中脱贫户50户180人）主要产业区用水排水灌溉难问题，提高脱贫地区农业生产效率和利于农民增收。"]
[102,"大埔镇洛古村洛古屯水稻产业配套灌溉设施建设","产业发展","小型农田水利设施建设",40,"洛古村","铺设110管长1500米，闸门30个及配套160千瓦变压器、线路约600米",2026,700,700,"否","群众积极参与，推动经济发展，增加群众经济收入。","否","否","柳城县农业农村局","大埔镇人民政府","罗杰文","0772-7618226",40,40,0,"项目建成后，进一步提升基地开发建设便利性，提高农产品质量，增加群众收入。"]
[103,"大埔镇中回村中回屯水稻产业配套设施灌溉水渠建设","产业发展","小型农田水利设施建设",59,"中回村","宽0.4米，高0.4米，长2500米三面光水沟（需二次搬运）",2026,166,248,"否","群众积极参与，投工投劳。中回村中回屯水沟工程项目建成后，解决166人农田灌溉。","否","否","柳城县农业农村局","大埔镇人民政府","罗杰文","0772-7618226",59,59,0,"项目建成后，进一步提升村屯农作物灌溉水平，提高农作物产量，增加群众收入。"]
[104,"柳城华侨管理区高吕屯农田灌溉水渠建设","产业发展","小型农田水利设施建设",58,"柳城华侨管理区","新建三面光水渠长约800米，宽0.8米，高1米，建设洗衣池两个。",2026,517,517,"否","群众积极参与、改善生活生产条件、提高生活质量，项目建成后解决群众农田灌溉问题","否","否","柳城县农业农村局","柳城华侨管理区","林兆忠","0772-6648705",55,55,0,"项目受益115户517人，改善农村生产条件，带动产业发展，增加农民收入。"]
[105,"柳城华侨农场柑橘产业配套泄洪渠综合整治项目","产业发展","小型农田水利设施建设",135,"柳城华侨管理区","改造一分场至场部泄洪渠1700米：渠道疏浚、修建混凝土挡墙、底部硬化、修建植草式生态护坡等.",2026,1300,3000,"否","项目建成后，可解决一分场（含场部、茶厂）、三分场2000亩柑橘园灌溉用水问题，促进产业发展，助农增收","否","否","柳城县农业农村局","柳城华侨管理区","林兆忠","0772-6648705",135,135,0,"项目建成后，可解决一分场（含场部、茶厂）、三分场3000亩柑橘园灌溉用水问题。"]
[106,"社冲乡仓贝村高棉屯水稻产业配套灌溉设施建设","产业发展","小型农田水利设施建设",65,"仓贝村","主要建设内容是新建灌溉渠道长1000米，宽0.8米，高0.8米等；新建灌溉渠道长500米，宽0.4米，高0.4米等。",2026,321,1067,"否","群众积极支持，完善农业基础设施，项目建成后解决农作物灌溉问题，促进产业发展，改善生活生产条件，增加产业收入，巩固脱贫成效。","否","否","柳城县农业农村局","社冲乡人民政府","韦柳园","0772-2465977",65,65,0,"解决高棉屯、良冲屯牧场屯、汶头屯412亩农田灌溉"]
[107,"社冲乡洛文村新村屯至村西屯水稻产业配套灌溉设施建设","产业发展","小型农田水利设施建设",60,"洛文村","1、新建浆砌石防水坝体，长15米，宽1米，高2米等；\n2、新建灌溉水渠长100米，宽1米，高1米等；\n3、新建灌溉水渠长1200米，宽0.6米，高0.8米等。",2026,379,1650,"是","群众积极支持，完善农业基础设施，项目建成后解决农作物灌溉问题，促进产业发展，改善生活生产条件，增加产业收入，巩固脱贫成效。","否","否","柳城县农业农村局","社冲乡人民政府","韦柳园","0772-2465977",60,60,0,"解决洛文村新村屯、村西屯、那达屯650亩农田灌溉"]
[108,"社冲乡无忧村大同屯、无忧屯水稻产业配套灌溉设施建设","产业发展","小型农田水利设施建设",50,"无忧村","大同屯新建灌溉水渠长800米，宽0.4米，高0.4米；无忧屯新建灌溉水渠长250米，宽2米，高1.5米等。",2026,1230,2106,"否","群众积极支持，完善农业基础设施，项目建成后解决农作物灌溉问题，促进产业发展，改善生活生产条件，增加产业收入，巩固脱贫成效。","否","否","柳城县农业农村局","社冲乡人民政府","韦柳园","0772-2465977",50,50,0,"解决无忧村大同屯、无忧屯670亩农田灌溉"]
[109,"社冲乡仓贝村仓贝屯水稻产业配套灌溉设施建设","产业发展","小型农田水利设施建设",60,"仓贝村","1、新建灌溉渠道长600米，宽0.6米，高0.6米等；\n2、新建灌溉渠道长200米，宽0.4米，高0.4米等；\n3、新建灌溉渠道长420米，宽1.2米，高1.2米等。",2026,1877,2153,"否","群众积极支持，完善农业基础设施，项目建成后解决农作物灌溉问题，促进产业发展，改善生活生产条件，增加产业收入，巩固脱贫成效。","否","否","柳城县农业农村局","社冲乡人民政府","韦柳园","0772-2465977",60,60,0,"解决仓贝屯、银村屯、良冲屯、牧场屯、汶头屯654亩农田灌溉"]
[110,"社冲乡仓贝村马安屯水稻产业配套灌溉设施建设","产业发展","小型农田水利设施建设",15,"仓贝村","新建灌溉渠道长300米，宽0.6米，高0.6米等。",2026,115,456,"否","群众积极支持，完善农业基础设施，项目建成后解决农作物灌溉问题，促进产业发展，改善生活生产条件，增加产业收入，巩固脱贫成效。","否","否","柳城县农业农村局","社冲乡人民政府","韦柳园","0772-2465977",15,15,0,"解决马安屯、银村屯265亩农田灌溉"]
[111,"社冲乡仓贝村南山屯水稻产业配套灌溉设施建设","产业发展","小型农田水利设施建设",30,"仓贝村","新建灌溉渠道长1000米，宽0.4米，高0.4米等。",2026,1015,2043,"否","群众积极支持，完善农业基础设施，项目建成后解决农作物灌溉问题，促进产业发展，改善生活生产条件，增加产业收入，巩固脱贫成效。","否","否","柳城县农业农村局","社冲乡人民政府","韦柳园","0772-2465977",30,30,0,"解决南山屯345亩农田灌溉"]
[112,"龙头镇隆水村邬家屯农田灌溉水渠建设","产业发展","小型农田水利设施建设",45,"隆水村","邬家13队水渠三面光硬化，总长度1500米，内空40cm*40cm,",2026,75,267,"否","群众积极支持，项目建成后解决农作物灌溉问题，改善生活生产条件、提高生活质量。","否","否","柳城县农业农村局","龙头镇人民政府","黄阳丽","0772-7871213",45,45,0,"项目受益75户267人，改善农村生产条件，带动产业发展，增加农民收入。"]
[113,"龙头镇田厂村赵家屯、旗山村下里屯产业配套设施建设","产业发展","小型农田水利设施建设",58,"田厂村、旗山村","赵家屯水渠三面光硬化，总长度1000米，内空40cm*40cm,旗山村下里屯灌溉渠长900米，内空40*40",2026,107,417,"是","群众积极支持，项目建成后解决农作物灌溉问题，改善生活生产条件、提高生活质量。","否","否","柳城县农业农村局","龙头镇人民政府","黄阳丽","0772-7871213",58,58,0,"项目受益107户417人，改善农村生产条件，带动产业发展，增加农民收入。"]
[114,"龙头镇伏虎村上罗屯、曲江屯、木村屯、伏虎屯产业配套设施建设","产业发展","小型农田水利设施建设",57,"伏虎村","1.西山塘至红圈岭路，三面光灌溉沟，长300米，宽60厘米，高50厘米。\n2.西山塘到山嘴，三面光灌溉沟，长200米，宽60厘米，高50厘米\n3.田洞到拱桥三面光灌溉沟，长600米，宽35厘米，高40厘米\n4.石壁冲三面光灌溉沟，长800米，宽40公分，高60公分",2026,423,1842,"否","群众积极支持，项目建成后解决农作物灌溉问题，改善生活生产条件、提高生活质量。","否","否","柳城县农业农村局","龙头镇人民政府","黄阳丽","0772-7871213",57,57,0,"项目受益4234户1842人，改善农村生产条件，带动产业发展，增加农民收入。"]
[115,"龙头镇新村村罗村屯、新村屯产业配套设施建设","产业发展","小型农田水利设施建设",58,"新村村","1.原有水沟水渠三面光硬化，总长度1000米，内空40cm*40cm\n2.新村屯三面光水沟共长1000米，内空40cm*40cm",2026,409,725,"否","群众积极支持，项目建成后解决农作物灌溉问题，改善生活生产条件、提高生活质量。","否","否","柳城县农业农村局","龙头镇人民政府","黄阳丽","0772-7871213",58,58,0,"项目受益173户725人，改善农村生产条件，带动产业发展，增加农民收入。"]
[116,"寨隆镇更祥村创村屯道路硬化及灌溉水渠糖料蔗产业区建设","产业发展","小型农田水利设施建设",54,"更祥村","新建道路硬化长700米、宽3.5米、厚度0.2米，挡土墙100米、涵管等\n新建三面光排水渠长300米；宽0.5米，深0.5米。",2026,94,311,"是","改善创村红屯的生产生活条件，促进产业发展，方便群众出行","否","否","柳城县农业农村局","寨隆镇人民政府","佟永恒","0772-3425826",54,54,0,"项目受益94户311人，改善农村生产条件，带动产业发展，增加农民收入。"]
[117,"沙埔镇沙埔村郊街屯优质稻农田灌溉水渠建设","产业发展","小型农田水利设施建设",67,"沙埔村","沟长1900米，三面光，其中1000米沟宽50cm,900米沟宽40cm，水沟墙体厚度20CM",2026,1000,1000,"否","通过修建水沟能解决郊街屯1000人农田灌溉问题，增加农民收入。","否","否","柳城县农业农村局","沙埔镇人民政府","杨群","0772-7011413",67,67,0,"通过项目建设，完成1900米水沟建设，解决郊街屯1000人农田灌溉问题，增加农民收入。"]
[118,"沙埔镇六广村枫木屯木村至龙安洞优质稻农田灌溉水渠建设","产业发展","小型农田水利设施建设",66,"六广村","灌溉沟渠三面光硬化总长2000米、其中：150米*0.6米*0.6米，80米*1米*1米，70米*0.8米*0.8米，1700米*0.4米*0.4米",2026,650,900,"否","群众积极参与、改善生活生产条件、提高生活质量，项目建成后解决枫木屯650人农田灌溉问题，增加农民收入。","否","否","柳城县农业农村局","沙埔镇人民政府","杨群","0772-7011413",66,66,0,"通过项目建设，完成2000米水沟建设，解决枫木屯900人农田灌溉问题，增加农民收入。"]
[119,"六塘镇三界村谷本田洞产业配套灌溉设施建设","产业发展","小型农田水利设施建设",13.5,"三界村","建设三面光水沟长300米、60*60*60",2026,259,400,"是","群众积极参与，共建共享惠民工程。解决三界村谷本屯259人用水难题，直接促进农业增收；改善生活条件，释放劳动力；","否","否","柳城县农业农村局","六塘镇人民政府","吕伟华","0772-7711213",13.5,13.5,0,"群众积极参与，共建共享惠民工程。解决三界村谷本屯259人用水难题，直接促进农业增收；改善生活条件，释放劳动力；"]
[120,"六塘镇肯社村桥圩屯产业配套灌溉设施建设","产业发展","小型农田水利设施建设",33.6,"肯社村","建设三面光灌溉水渠长 1200  米宽 0.4 米高0.4米，三面光",2026,800,1000,"否","群众积极参与，共建共享惠民工程。解决肯社村及周边村落1000人用水难题，直接促进农业增收；改善生活条件，释放劳动力；","否","否","柳城县农业农村局","六塘镇人民政府","吕伟华","0772-7711213",33.6,33.6,0,"肯社村水渠建设工程项目建成后，解决1000人生产生活用水需求，助力农业增产。"]
[121,"六塘镇六塘村海村屯产业配套灌溉设施建设","产业发展","小型农田水利设施建设",50,"六塘村","排水沟建设三面光长2000米、宽0.6米、高0.6米",2026,380,380,"否","群众积极参与，共建共享惠民工程。解决六塘村380人用水难题，直接促进农业增收；改善生活条件，释放劳动力；","否","否","柳城县农业农村局","六塘镇人民政府","吕伟华","0772-7711213",50,50,0,"六塘村水渠建设工程项目建成后，解决380人生产生活用水需求，助力农业增产。"]
[122,"六塘镇中团村大旦屯产业配套灌溉设施建设","产业发展","小型农田水利设施建设",40,"中团村","新建水泥砖，水泥硬化排水沟长1000米，宽0.7米，高：1.2米，设拱桥5处。",2026,"342人","765人","否","解决汛期排水不畅问题，改善农田灌溉条件，提升排水效率，减少水田及旱地内涝风险，投工投劳，促进村民征收。","否","否","柳城县农业农村局","六塘镇人民政府","吕伟华","0772-7711213",40,40,0,"解决汛期排水不畅问题，改善农田灌溉条件，提升排水效率，减少水田及旱地内涝风险"]
[123,"六塘镇六塘村九汉屯双高产业配套灌溉设施建设","产业发展","小型农田水利设施建设",27,"六塘村","排水沟建设三面光长双边600米、宽0.6米、高0.6米",2026,587,587,"否","群众积极参与，共建共享惠民工程。解决六塘村587人用水难题，直接促进农业增收；改善生活条件，释放劳动力；","否","否","柳城县农业农村局","六塘镇人民政府","吕伟华","0772-7711213",27,27,0,"六塘村水渠建设工程项目建成后，解决587人生产生活用水需求，助力农业增产。"]
[124,"六塘镇肯社村桥圩屯至禄村屯产业配套灌溉设施建设","产业发展","小型农田水利设施建设",60,"肯社村","建设灌溉水渠长 1700  米宽 0.8 米高0.6米，三面光",2026,1400,2000,"否","群众积极参与，共建共享惠民工程。解决肯社村及周边村落2000人用水难题，直接促进农业增收；改善生活条件，释放劳动力；","否","否","柳城县农业农村局","六塘镇人民政府","吕伟华","0772-7711213",60,60,0,"肯社村水渠建设工程项目建成后，解决2000人生产生活用水需求，助力农业增产。"]
[125,"东泉镇思江村六社水库灌区甘蔗产业配套灌溉设施建设","产业发展","小型农田水利设施建设",55,"思江村","1400米长、0.6米宽、0.6米高，三面光硬化",2026,1635,1635,"否","群众积极参与，投工投劳。思江村农田灌溉工程项目建成后，解决750亩农田灌溉问题。","否","否","柳城县农业农村局","东泉镇人民政府","胡钰龙","0772-7961301",70,70,0,"思江村农田灌溉工程项目建成后，解决750亩农田灌溉问题。"]
[126,"东泉镇中段村上中段屯中干坝水稻产业配套灌溉设施建设","产业发展","小型农田水利设施建设",43.5,"中段村","新建输出水渠三面光60×60水沟长800米；40×40水沟长700米，水渠引流下涉2个水坝，搭建架架空沟渠引入农田，长约20米，宽60公分，高40公分，砌梯形挡堵墙高4米，宽60公分，长15米",2026,325,500,"否","方便群众灌溉，进一步改善生产生活环境，提高满意度。","否","否","柳城县农业农村局","东泉镇人民政府","胡钰龙","0772-7961301",43.5,43.5,0,"方便群众灌溉，进一步改善生产生活环境，提高满意度。"]
[127,"东泉镇大樟村练家屯、蓝家屯水稻产业配套灌溉设施建设","产业发展","小型农田水利设施建设",50,"大樟村","建设长1400米的灌溉水渠（该灌溉水渠分为三段，其中500米段的宽度为0.5米，深度为0.5米；150米段的宽度为1米，深度为1米；750米段宽度为0.3米，深度为0.4米）。",2026,416,968,"否","该项目解决因水沟失修引起内涝，淹没农作物，导致群众财产损失，方便群众灌溉，进一步改善生产生活环境，提高满意度。","否","否","柳城县农业农村局","东泉镇人民政府","胡钰龙","0772-7961301",50,50,0,"该项目解决因水沟失修引起内涝，淹没农作物，导致群众财产损失，方便群众灌溉，进一步改善生产生活环境，提高满意度。"]
[128,"东泉镇洲村村下洲村屯至门提屯水稻产业配套灌溉设施建设","产业发展","小型农田水利设施建设",42,"洲村村","1300米长、0.6米宽、0.8米高，三面光硬化",2026,960,960,"否","群众积极参与，投工投劳，洲村屯至门提屯农田灌溉工程项目建成后，解决520亩农田灌溉问题","否","否","柳城县农业农村局","东泉镇人民政府","胡钰龙","0772-7961301",42,42,0,"洲村屯至门提屯农田灌溉工程项目建成后，解决520亩农田灌溉问题"]
[129,"东泉镇西安村龙集屯至集下屯水稻产业配套灌溉设施建设","产业发展","小型农田水利设施建设",50,"西安村","1200米长、0.6米宽、0.6米高，三面光硬化",2026,860,860,"否","群众积极参与，投工投劳。西安村农田灌溉工程项目建成后，解决650亩农田灌溉问题。","否","否","柳城县农业农村局","东泉镇人民政府","胡钰龙","0772-7961301",50,50,0,"西安村农田灌溉工程项目建成后，解决650亩农田灌溉问题。"]
[130,"东泉镇高田村拉寨屯、水丈屯水稻产业配套设施建设","产业发展","小型农田水利设施建设",43,"高田村","机耕路长1100米，宽4米，三面光排水渠：长1350米×宽0.6米×0.8米，",2026,1025,1500,"否","方便群众进行生产发展，进一步改善生产生活环境，提高满意度。","否","否","柳城县农业农村局","东泉镇人民政府","胡钰龙","0772-7961301","43万","43万",0,"方便群众进行生产发展，进一步改善生产生活环境，提高满意度。"]
[131,"东泉镇黄塘村底料屯、谷仓屯屋角、石甲屯楼梯岭、瓦厂屯大塘山水稻产业配套灌溉设施建设","产业发展","小型农田水利设施建设",59.5,"黄塘村","1、底料屯，底料山塘坝基维修加固长80米，宽4米，高4米，2、谷仓屯屋角山塘坝基危险加固长30米、高3.5米、宽2.5米、修建灌溉水渠宽0.4米、高0.6米、长200米三面光硬化。3、石甲屯楼梯岭修建连接2022年高标准农田灌溉水渠建设500米，0.4米宽、0.6米高，三面光硬化.4、瓦厂屯大塘山塘农田灌溉水渠建设600米0.4米宽、0.6米高，三面光硬化.",2026,1300,500,"否","方便群众灌溉，进一步改善生产生活环境，提高满意度。","否","否","柳城县农业农村局","东泉镇人民政府","胡钰龙","0772-7961301",59.5,59.5,0,"方便群众灌溉，进一步改善生产生活环境，提高满意度。"]
[132,"东泉镇尖石村尖石屯水稻产业配套灌溉设施建设","产业发展","小型农田水利设施建设",170,"尖石村","建设三面光水沟2500米X0.6米X0.6米",2026,1200,1200,"否","方便群众灌溉，进一步改善生产生活环境，提高满意度。","否","否","柳城县农业农村局","东泉镇人民政府","胡钰龙","0772-7961301",170,170,0,"方便群众灌溉，进一步改善生产生活环境，提高满意度。"]
[133,"东泉镇雷塘村大华屯至曾家屯水稻产业配套灌溉设施建设","产业发展","小型农田水利设施建设",99,"雷塘村","三面光水渠长2500米、宽0.6米、高0.6米",2026,1405,1405,"是","方便群众灌溉，进一步改善生产生活环境，提高满意度。","否","否","柳城县农业农村局","东泉镇人民政府","胡钰龙","0772-7961301",99,99,0,"方便群众灌溉，进一步改善生产生活环境，提高满意度。"]
[134,"东泉镇对河村马岭屯水稻产业配套灌溉设施建设","产业发展","小型农田水利设施建设",40,"对河村","灌溉三面光水沟长400米、宽3米、高1.5米。",2026,690,690,"否","方便群众灌溉，进一步改善生产生活环境，提高满意度。","否","否","柳城县农业农村局","东泉镇人民政府","胡钰龙","0772-7961301",40,40,0,"方便群众灌溉，进一步改善生产生活环境，提高满意度。"]
[135,"东泉镇螺田村马安屯至螺田屯、韩家屯水稻产业配套灌溉设施建设","产业发展","小型农田水利设施建设",50,"螺田村","灌溉三面光水沟800米长、2米宽、1.2米高",2026,4250,4250,"否","群众积极参与，投工投劳，马安屯至螺田屯、韩家屯农田灌溉工程项目建成后，解决800亩农田灌溉问题","否","否","柳城县农业农村局","东泉镇人民政府","胡钰龙","0772-7961301",50,50,0,"马安屯至螺田屯、韩家屯农田灌溉工程项目建成后，解决800亩农田灌溉问题"]
[136,"东泉镇永安村窑坪屯新安屯水稻产业配套灌溉设施建设","产业发展","小型农田水利设施建设",59.77,"永安村","三面光排水渠：大沟长50米×宽0.6米×高1米，小水沟长1480米×宽0.5米×高0.6 米",2026,1200,1200,"否","永安村窑坪屯水利设施工程项目建成后解决窑坪屯、新安屯农田灌溉，兴修水利确保农民增产增收","否","否","柳城县农业农村局","东泉镇人民政府","胡钰龙","0772-7961301",59.77,59.77,0,"永安村窑坪屯水利设施工程项目建成后解决窑坪屯、新安屯农田灌溉，兴修水利确保农民增产增收"]
[137,"东泉镇洲村村至大湖屯水稻产业配套灌溉设施建设","产业发展","小型农田水利设施建设",16,"洲村村","灌溉三面光水沟510米长、0.4米宽、0.6米高",2026,730,730,"否","群众积极参与，投工投劳，洲村村至大湖屯农田灌溉工程项目建成后，解决380亩农田灌溉问题","否","否","柳城县农业农村局","东泉镇人民政府","胡钰龙","0772-7961301",16,16,0,"洲村村至大湖屯农田灌溉工程项目建成后，解决380亩农田灌溉问题"]
[138,"东泉镇新龙村上龙屯、新村屯水稻产业配套设施建设","产业发展","小型农田水利设施建设",51,"新龙村","新龙村上龙屯道路硬化1000米，新村屯三面光排水沟建设，长200m×宽0.6m×0.8m高",2026,550,550,"否","改善新龙村上龙屯群众的生产生活条件，促进产业发展，方便群众出行","否","否","柳城县农业农村局","东泉镇人民政府","姚木兰","0772-7961211",51,51,0,"改善新龙村上龙屯群众的生产生活条件，促进产业发展，方便群众出行"]
[139,"古砦仫佬族乡龙美村刘家屯鸭坝头优质稻灌溉水渠建设项目","产业发展","小型农田水利设施建设",45,"龙美村","新建三面光灌溉水渠，长800m，宽0.6-0.8m，高0.6m。",2026,251,251,"否","群众积极参与、改善生活生产条件、提高生活质量，项目建成后解决群众农田灌溉问题","否","否","柳城县农业农村局","古砦仫佬族乡人民政府","全新结","0772-7611213",45,45,0,"完成修建灌溉水渠800m，有效解决群众农田灌溉问题。"]
[140,"古砦仫佬族乡龙袍村吴陋屯优质稻灌溉水渠建设建设项目","产业发展","小型农田水利设施建设",100,"龙袍村","新建三面光灌溉渠道长2500米，宽0.8米，高0.4米",2026,210,405,"否","群众积极参与、改善生活生产条件、提高生活质量，项目建成后解决群众农田灌溉问题","否","否","柳城县农业农村局","古砦仫佬族乡人民政府","全新结","0772-7611213",100,100,0,"完成修建灌溉水渠2500m，有效解决群众农田灌溉问题。"]
[141,"古砦仫佬族乡汶炉村上姚屯优质稻灌溉水渠建设项目","产业发展","小型农田水利设施建设",45,"汶炉村","新建三面光农田灌溉水渠约800米，宽1.0米，高0.6",2026,190,377,"是","群众积极参与、改善生活生产条件、提高生活质量，项目建成后解决群众农田灌溉问题","否","否","柳城县农业农村局","古砦仫佬族乡人民政府","全新结","0772-7611213",45,45,0,"完成修建灌溉水渠800m，有效解决群众农田灌溉问题。"]
[142,"古砦仫佬族乡十五坡村向阳屯优质稻灌溉水渠建设项目","产业发展","小型农田水利设施建设",21,"十五坡村","新建三面光水渠600米，宽0.8米，高0.4米",2026,30,74,"否","群众积极参与、改善生活生产条件、提高生活质量，项目建成后解决群众农田灌溉问题","否","否","柳城县农业农村局","古砦仫佬族乡人民政府","全新结","0772-7611213",21,21,0,"完成修建灌溉水渠600m，有效解决群众农田灌溉问题。"]
[143,"古砦仫佬族乡上富村平峒屯1队新建排洪水沟项目","产业发展","小型农田水利设施建设",40,"上富村","排水沟800米，宽2米，高1米",2026,230,230,"是","群众积极参与、改善生活生产条件、提高生活质量，项目建成后解决村屯雨季排水困难问题","否","否","柳城县农业农村局","古砦仫佬族乡人民政府","全新结","0772-7611213",40,40,0,"完成修建排水沟800m,解决村屯雨季排水困难问题。"]
[144,"古砦仫佬族乡上富村平峒屯2队新建排洪水沟项目","产业发展","小型农田水利设施建设",45,"上富村","排水沟850米，宽2米，高1米",2026,312,312,"是","群众积极参与、改善生活生产条件、提高生活质量，项目建成后解决村屯雨季排水困难问题","否","否","柳城县农业农村局","古砦仫佬族乡人民政府","全新结","0772-7611213",45,45,0,"完成修建排水沟850m,解决村屯雨季排水困难问题。"]
[145,"太平镇山咀村山咀屯水稻产业配套灌溉设施","产业发展","小型农田水利设施建设",60,"山咀村","在山咀屯硬化灌溉水渠，长约800米。高0.8米，内宽0.8米，建厚0.4米/边，三面光",2026,1300,1300,"否","群众积极参与，投工投劳，项目建设后可改善周边1500余亩农田灌溉，提升该村农业生产条件，助农增收，受益农户300户，1300人，其中脱贫人口34户，120人。","否","否","柳城县农业农村局","太平镇人民政府","韦俏爽","0772-7051213",60,60,0,"通过硬化灌溉水渠800米，在施工过程中提供务工就业岗位，群众积极参与，投工投劳，改善约1500亩甘蔗、水稻作物灌溉条件，提升该村农业生产条件，助农增收，受益农户300户，1300人，其中脱贫人口34户，120人。"]
[146,"太平镇西岸村西岸屯水沟、河岸挡土墙修建项目","产业发展","小型农田水利",60,"西岸村","在西岸屯沟渠上游及部分河岸修建挡土墙约400米长，150cm深，80cm宽；沟渠及河道疏通堵漏",2026,280,280,"否","群众积极参与，投工投劳，项目建设后可改善周边300余亩农田灌溉，提升该村农业生产条件，助农增收，受益农户80户，280人。","否","否","柳城县农业农村局","太平镇人民政府","韦俏爽","0772-7051213",60,60,0,"通过修建水沟、河岸挡土墙约400米，在施工过程中提供务工就业岗位，群众积极参与，投工投劳，改善约300亩甘蔗、水稻作物灌溉条件，提升该村农业生产条件，助农增收，受益农户80户，280人。"]
[147,"太平镇杨梅村水稻产业配套灌溉设施","产业发展","小型农田水利设施建设",65,"杨梅村","在大岭屯、小岭屯硬化灌溉水渠长约1.8公里。其中40*40渠：598米；80*100渠：75米；100*120渠：205米；80*60渠：180米；\n80*80渠180米；\n60*100渠：530米；50*100渠215米；\n60*120渠：65米",2026,767,767,"否","群众积极参与，投工投劳，项目建设后可改善周边500余亩农田灌溉，提升该村农业生产条件，助农增收，受益农户204户，767人，其中脱贫人口21户，108人。","否","否","柳城县农业农村局","太平镇人民政府","韦俏爽","0772-7051213",65,65,0,"通过硬化灌溉水渠1.8公里，在施工过程中提供务工就业岗位，群众积极参与，投工投劳，改善约500亩甘蔗、水稻作物灌溉条件，提升该村农业生产条件，助农增收，受益农户204户，767人，其中脱贫人口21户，108人。"]
[148,"太平镇上火村上火屯水沟挡土墙修建项目","产业发展","小型农田水利设施建设",125,"上火村","在上火屯修建水沟挡土墙约730米长，150cm深，80cm宽",2026,599,599,"否","群众积极参与，投工投劳，项目建设后可改善周边1800余亩农田灌溉，提升该村农业生产条件，助农增收，受益农户160户，599人，其中脱贫人口13户，26人。","否","否","柳城县农业农村局","太平镇人民政府","韦俏爽","0772-7051213",125,125,0,"通过修建水沟挡土墙730米，在施工过程中提供务工就业岗位，群众积极参与，投工投劳，改善约1800亩甘蔗、水稻作物灌溉条件，提升该村农业生产条件，农增收，受益农户160户，599人，其中脱贫人口13户，26人。"]
[149,"太平镇近潭村大桥屯水稻产业配套灌溉设施","产业发展","小型农田水利设施建设",80,"近潭村","在大桥屯硬化灌溉水渠长约2.5公里。其中1750米，深40厘米宽40厘米；750米，深90厘米宽90厘米",2026,512,512,"否","群众积极参与，投工投劳，项目建设后可改善周边390余亩农田灌溉，提升该村农业生产条件，助农增收，受益农户145户，512人，其中脱贫人口9户，24人。","否","否","柳城县农业农村局","太平镇人民政府","韦俏爽","0772-7051213",80,80,0,"通过硬化灌溉水渠2.5公里，在施工过程中提供务工就业岗位，群众积极参与，投工投劳，改善约390亩甘蔗、水稻作物灌溉条件，提升该村农业生产条件，助农增收，受益农户145户，512人，其中脱贫人口9户，24人。"]
[150,"太平上油村拉坎屯水稻产业配套灌溉设施","产业发展","小型农田水利设施建设",55,"上油村","拉坎村头涵管过河钢管60M长，直径0.5M；过河钢管前后主水渠共400M深0.6M宽0.6M；分支水渠深0.4M宽0.4M长500M;分支水渠深0.3M宽0.3M长1000M.",2026,357,357,"是","群众积极参与，投工投劳，项目建设后可改善周边90余亩农田灌溉，提升该村农业生产条件，助农增收，受益农户80户，357人，其中脱贫人口18户，67人。","否","否","柳城县农业农村局","太平镇人民政府","韦俏爽","0772-7051213",55,55,0,"通过硬化道路约1.4公里，在施工过程中提供务工就业岗位，群众积极参与，投工投劳，改善村民出行条件，提升该村农业生产条件，助农增收，受益农户80户，357人，其中脱贫人口18户，67人。"]
[151,"太平镇龙兴村下良屯清淤项目","产业发展","小型农田水利设施建设",230,"龙兴村","在下良屯清淤维修排洪沟1900米",2026,312,312,"否","群众积极参与，投工投劳，项目建设后可改善周边300余亩农田灌溉，提升该村农业生产条件，助农增收，受益农户56户，312人，其中脱贫人口7户，26人。","否","否","柳城县农业农村局","太平镇人民政府","韦俏爽","0772-7051213",230,230,0,"通过修建拓宽河道2.5公里，在施工过程中提供务工就业岗位，群众积极参与，投工投劳，改善约500亩甘蔗、水稻作物灌溉条件，提升该村农业生产条件，助农增收，受益农户56户，312人，其中脱贫人口7户，26人。"]
[152,"太平镇黄宜村黄宜屯水稻产业配套灌溉设施","产业发展","小型农田水利设施建设",80,"黄宜村","在黄宜屯硬化灌溉水渠长约400米。上宽2.3米，下宽1.58米，高1.2米",2026,568,568,"否","群众积极参与，投工投劳，项目建设后可改善周边300余亩农田灌溉，提升该村农业生产条件，助农增收，受益农户139户，568人，其中脱贫人口16户，23人。","否","否","柳城县农业农村局","太平镇人民政府","韦俏爽","0772-7051213",80,80,0,"通过硬化灌溉水渠400米，在施工过程中提供务工就业岗位，群众积极参与，投工投劳，改善约300余亩甘蔗、水稻作物灌溉条件，提升该村农业生产条件，助农增收，受益农户139户，568人，其中脱贫人口16户，23人。"]
[153,"寨隆镇鸡楼村六岭屯上甘伦至下甘伦三面光灌溉水渠","产业发展","小型农田水利设施建设",52,"鸡楼村","新建三面光排水渠长1000米；宽0.8米，深0.8米。",2026,150,400,"否","方便群众灌溉，进一步改善生产生活环境，提高满意度。","否","否","柳城县农业农村局","寨隆镇人民政府","莫春阳","0772-3425826",52,52,0,"改善六岭屯种植灌溉难的问题，方便150户400人发展产业。"]
[154,"寨隆镇鸡楼村鸡楼屯凉水汶至鸡楼新村三面光灌溉水渠","产业发展","小型农田水利设施建设",45,"鸡楼村","新建三面光排水渠长700米；宽0.8米，深0.8米。",2026,128,406,"否","方便群众灌溉，进一步改善生产生活环境，提高满意度。","否","否","柳城县农业农村局","寨隆镇人民政府","莫春阳","0772-3425826",45,45,0,"改善鸡楼屯种植灌溉难的问题，方便128户406人发展产业。"]
[155,"寨隆镇更祥屯小学学校背至江花灌溉水渠","产业发展","小型农田水利设施建设",50,"更祥村","新建三面光排水渠长1200米；宽0.5米，深0.5米。",2026,148,483,"是","方便群众灌溉，进一步改善生产生活环境，提高满意度。","否","否","柳城县农业农村局","寨隆镇人民政府","莫春阳","0772-3425826",50,50,0,"改善更祥屯种植灌溉难的问题，方便148户483人发展产业。"]
[156,"寨隆镇下尧村洞棋屯下垌三面光灌溉水渠","产业发展","小型农田水利设施建设",48,"下尧村","新建三面光排水渠长1500米；宽2.1米，深0.8米。",2026,130,460,"否","方便群众灌溉，进一步改善生产生活环境，提高满意度。","否","否","柳城县农业农村局","寨隆镇人民政府","莫春阳","0772-3425826",48,48,0,"改善洞棋屯种植灌溉难的问题，方便130户460人发展产业。"]
["二、乡村建设行动（114个）",{"$nulls":3},{"$f":"E168+E193+E206+E280","v":7670.34}]
["（一）村基础设施建设(24个)",{"$nulls":3},{"$f":"SUM(E169:E192)","v":1773.46}]
[157,"柳城县2026年少数民族发展资金-社冲乡社冲村公店屯通屯道路建设项目","乡村建设行动","产业路、资源路、旅游路建设",80,"社冲村","1.毛石混凝土挡土墙长约500米，平均高度2.5米；\n2.道路两边扩宽1150平方米等。",2026,710,710,"否","群众自发让地，衔接资金建设完善农村基础设施，群众积极参与项目建设及监督并受益。项目建成后，可提升当地103户710人人居条件，改善社冲村的生产生活条件和村容村貌，促进产业发展，方便群众出行。","否","否","柳城县委统战部","柳城县委统战部","吴凯文","0772-7612400",80,80,0,"项目建成后，可提升当地103户710人人居条件，改善社冲村的生产生活条件和村容村貌，促进产业发展，方便群众出行。"]
[158,"柳城县2026年少数民族发展资金-龙头镇田厂村石脚至网山仔甘蔗产业基地道路建设项目","乡村建设行动","产业路、资源路、旅游路建设",59,"田厂村","道路硬化长约1000米，宽约3.0-3.5米，厚0.2米，包括路基、路面、路肩、涵洞等",2026,635,635,"否","群众积极参与，投工投劳。提升生产运输效率，解决群635人出行问题。","否","否","柳城县委统战部","柳城县委统战部","吴凯文","0772-7612400",59,59,0,"田厂村产业道路硬化项目建成后，解决群众635人出行问题。"]
[159,"柳城县2026年少数民族发展资金-马山镇大龙村甘蔗产业基地道路建设项目","乡村建设行动","产业路、资源路、旅游路建设",80,"大龙村","1、外大龙屯硬化产业道路长约270米，路宽3.5米，厚0.2米\n2、下料屯硬化产业道路长约800米，路宽4米，厚0.2米\n3、上料屯硬化产业道路长约800米，路宽3.5米，厚0.2米",2026,1700,1700,"否","项目建成后，将显著改善大龙村外大龙屯、下料屯、上料屯的交通运输条件，降低农产品和生产资料运输成本，促进产业兴旺，持续带动农民增收致富。","否","否","柳城县委统战部","柳城县委统战部","吴凯文","0772-7612400",80,80,0,"新建和硬化产业道路总长1870米，解决大龙村外大龙屯、下料屯、上料屯共1700名群众产业运输和出行难题。项目建成后，将显著改善交通运输条件，降低生产成本，促进农产品外销，为当地特色产业发展和乡村振兴提供坚实的交通基础设施保障。"]
[160,"柳城县2026年少数民族发展资金-六塘镇拉燕村至羊角屯甘蔗产业配套设施建设项目","乡村建设行动","产业路、资源路、旅游路建设",50,"拉燕村","硬化路面长1000米、路面宽4米、厚20厘米，压实砂石基层厚10厘米；两边路肩宽各0.5米；合理设置涵洞、边沟、错车道等",2026,600,1000,"否","项目带动群众参与，路通业兴，精准带贫增收致富。产业覆盖的甘蔗面积500亩。建成后，解决1000人出行、产业交通难题","否","否","柳城县委统战部","柳城县委统战部","吴凯文","0772-7612400",50,50,0,"拉燕村产业道路硬化项目建成后，解决1000名群众出行和农产品运输难题。"]
[161,"柳城县2026年少数民族发展资金-太平镇西岸村上脉屯道路硬化工程","乡村建设行动","产业路、资源路、旅游路建设",45,"西岸村","在上脉屯修建硬化道路约700米长，3.5米宽水泥路",2026,240,240,"是","群众积极参与，投工投劳，项目建设后可改善村民的出行条件，提升该村农业生产条件，助农增收，受益农户63户，240人，其中脱贫人口7户，65人。","否","否","柳城县委统战部","柳城县委统战部","吴凯文","0772-7612400",45,45,0,"通过硬化村屯道路约1.5公里，在施工过程中提供务工就业岗位，群众积极参与，投工投劳，改善村民出行条件，提升该村农业生产条件，助农增收，受益农户63户，240人，其中脱贫人口7户，65人。"]
[162,"柳城县2026年少数民族发展资金-太平镇上火村赤罗屯道路硬化工程","乡村建设行动","产业路、资源路、旅游路建设",45,"上火村","在赤罗屯修建硬化道路约700米长，3.5米宽水泥路",2026,810,810,"否","群众积极参与，投工投劳，项目建设后可改善村民的出行条件，提升该村农业生产条件，助农增收，受益农户220户，810人，其中脱贫人口28户，76人。","否","否","柳城县委统战部","柳城县委统战部","吴凯文","0772-7612400",45,45,0,"通过硬化道路约1.2公里，在施工过程中提供务工就业岗位，群众积极参与，投工投劳，改善村民出行条件，提升该村农业生产条件，助农增收，受益农户220户，810人，其中脱贫人口28户，76人。"]
[163,"柳城县龙头镇网山箱涵建设工程","乡村建设行动","农村道路建设（通村路、通户路、小型桥梁等）",48.46,"旗山村","拆除现有桥梁，并在原址处新建满足公路-Ⅰ级荷载的箱涵。箱体结构为 2-4x1.75 米闭合框架，与河道正交，箱涵结构宽9.2米，长6米。",2026,504,504,"是","群众积极参与，投工劳动，项目建成后，解决村民出行条件，加速龙头镇旗山村的经济发展步伐，带动当地企业发展，项目受益农户约504人。","是","否","柳城县交通运输局","龙头镇人民政府","黄敏","0772-7871213",48.46,48.46,0,"拆除现有桥梁，并在原址处新建满足公路-Ⅰ级荷载的箱涵。箱体结构为 2-4x1.75 米闭合框架，与河道正交，箱涵结构宽9.2米，长6米。"]
[164,"六塘镇三界村汪村屯至三界街道路过路涵管建设工程","乡村建设行动","农村道路建设（通村路、通户路、小型桥梁等）",160,"三界村","涵洞10米，桥面长17米，宽6米，护栏、翼墙和引道等建设内容",2026,328,1000,"是","项目带动群众参与，路通业兴，精准带贫增收致富。建成后，解决约250户，约1000人出行、产业交\n通难题","否","否","柳城县交通运输局","六塘镇人民政府","梁康志","0772-7711213",160,160,0,"打通交通节点，提升路网效率，为乡村产业发展筑牢基础保障，解决1000人交通难题"]
[165,"马山镇八甲村大岭屯至尧山水库甘蔗产业道路硬化","乡村建设行动","产业路、资源路、旅游路建设",95,"八甲村","硬化产业道路1860米，路基宽4.5米，硬化路面宽3.5米，厚度为0.2米，护栏、挡土墙、涵管等",2026,214,712,"否","改善八甲的生产生活条件，促进产业发展，促进群众增产增收。","否","否","柳城县农业农村局","马山镇人民政府","莫璐遥","0772-7761222",20,20,0,"完成1.86公里产业道路硬化及相应挡土墙、安全护栏、涵桥（管）等，解决214户712人（其中脱贫户9户26人）出入主要甘蔗产业区行路难问题，提高农业生产效率和利于农民增收。"]
[166,"马山镇北浩村北浩路口至牛洞产业道路硬化二期","乡村建设行动","产业路、资源路、旅游路建设",70,"北浩村","硬化路面长1200米、路面宽3.5米、厚0.20米，压实砂石基层厚20厘米；两边培路肩宽各0.7米；合理设置涵洞、边沟、错车道等",2026,1000,1250,"是","改善北浩村的生产生活条件，促进产业发展。","否","否","柳城县农业农村局","马山镇人民政府","莫璐遥","0772-7761222",70,70,0,"硬化路面长约1200米，宽3米，厚20公分，以及相应的管涵、挡土墙、盖板涵等，解决北浩村320亩产业区出行难问题，提高产业生产效率，促进农民增收。"]
[167,"马山镇肯洛村六里屯后岭至长蜡洞道路硬化","乡村建设行动","产业路、资源路、旅游路建设",30,"肯洛村","硬化路面长350米、路面宽3.5米、厚0.20米，压实砂石基层厚20厘米，包括路基、路肩等",2026,136,136,"否","改善六里屯生产生活条件，促进产业发展。","否","否","柳城县农业农村局","马山镇人民政府","莫璐遥","0772-7761222",20,20,0,"提升运输效率，方便群众出行。"]
[168,"太平镇太平村14队水稻产业道路硬化","乡村建设行动","产业路、资源路、旅游路建设",40,"太平村","在14队水塔至观音岩水厂产业道路修建硬化道路约800米，3.5M宽",2026,288,288,"否","群众积极参与，投工投劳，项目建设后可改善周边居民的出行条件，提升该村农业生产条件，助农增收，受益农户86户，288人，其中脱贫人口3户，9人。","否","否","柳城县农业农村局","太平镇人民政府","韦俏爽","0772-7051213",40,40,null,"通过硬化道路约800米，在施工过程中提供务工就业岗位，群众积极参与，投工投劳，改善村民出行条件，提升该村农业生产条件，助农增收，受益农户86户，288人，其中脱贫人口3户，9人。"]
[169,"柳城华侨管理区三曼屯六黄岭尾至歪田产业道路硬化项目","乡村建设行动","产业路、资源路、旅游路建设",58,"柳城华侨管理区","硬化路面长1.1公里、路面宽3.5米、厚20厘米，压实砂石基层厚6厘米；两边培路肩宽各0.5米；合理设置涵管、错车道等。",2026,423,423,"否","改善三曼屯的生产生活条件，促进产业发展，方便群众出行。","否","否","柳城县农业农村局","柳城华侨管理区","林兆忠","0772-6648705",58,58,0,"解决产业地区道路通车问题，改善当地基础设施，方便109户423人出行。"]
[170,"柳城华侨管理区三曼屯屯尾产业道路硬化项目","乡村建设行动","产业路、资源路、旅游路建设",52,"柳城华侨管理区","硬化路面长1公里、路面宽3.5米、厚20厘米，压实砂石基层厚6厘米；两边培路肩宽各0.5米；合理设置涵管、错车道等。",2026,423,423,"否","改善三曼屯的生产生活条件，促进产业发展，方便群众出行。","否","否","柳城县农业农村局","柳城华侨管理区","林兆忠","0772-6648705",52,52,0,"解决产业地区道路通车问题，改善当地基础设施，方便109户423人出行。"]
[171,"柳城华侨管理区高吕屯屯口至六黄岭中产业道路硬化项目","乡村建设行动","产业路、资源路、旅游路建设",52,"柳城华侨管理区","硬化路面长1公里、路面宽3.5米、厚20厘米，压实砂石基层厚6厘米；两边培路肩宽各0.5米；合理设置涵管、错车道等。",2026,517,517,"否","改善高吕屯的生产生活条件，促进产业发展，方便群众出行。","否","否","柳城县农业农村局","柳城华侨管理区","林兆忠","0772-6648705",52,52,0,"解决产业地区道路通车问题，改善当地基础设施，方便115户517人出行。"]
[172,"柳城华侨管理区高吕屯水塔至百冲产业道路硬化项目","乡村建设行动","产业路、资源路、旅游路建设",52,"柳城华侨管理区","硬化路面长1公里、路面宽3.5米、厚20厘米，压实砂石基层厚6厘米；两边培路肩宽各0.5米；合理设置涵管、错车道等。",2026,517,517,"否","改善高吕屯的生产生活条件，促进产业发展，方便群众出行。","否","否","柳城县农业农村局","柳城华侨管理区","林兆忠","0772-6648705",52,52,0,"解决产业地区道路通车问题，改善当地基础设施，方便115户517人出行。"]
[173,"柳城华侨农场第二期柑橘产业配套设施硬化道路建设","乡村建设行动","产业路、资源路、旅游路建设",510,"柳城华侨管理区","项目新建柑橘产业道路硬化长10200米，宽3.5米，厚0.20米，建设内容包含路基、路面、路肩、涵管、会车道等。",2026,1600,5700,"否","项目建成后，通过改善柑橘产业园交通条件，提高产业交通便利化、机械化，方便1600人生产出行并降低农产品运输成本，促进产业发展，助农增收。","否","否","柳城县农业农村局","柳城华侨管理区","林兆忠","0772-6648705",510,510,0,"通过改善柑橘产业园交通条件，提高产业交通便利化、机械化，方便1600人生产出行并降低农产品运输成本，促进产业发展，助农增收。"]
[174,"东泉镇中段村中中段屯产业道路硬化","乡村建设行动","产业路、资源路、旅游路建设",50,"中段村","中段村口到楼叶产业道路硬化 长1430米，宽3.5米，厚度0.2米，水涵6处。",2026,880,1320,"否","方便群众进行生产发展，进一步改善生产生活环境，提高满意度。","否","否","柳城县农业农村局","东泉镇人民政府","姚木兰","0772-7961211",50,50,0,"方便群众进行生产发展，进一步改善生产生活环境，提高满意度。"]
[175,"东泉镇凉亭村二村屯道路硬化项目","乡村建设行动","产业路、资源路、旅游路建设",14,"凉亭村","硬化道路长400米、宽3.5米、厚0.2米",2026,650,1100,"否","群众自发让地，财政衔接资金建设完善农业基础设施，群众参与监督并受益。","否","否","柳城县农业农村局","东泉镇人民政府","姚木兰","0772-7961211",14,14,0,"群众自发让地，财政衔接资金建设完善农业基础设施，群众参与监督并受益。"]
[176,"东泉镇前屯村大碑屯道路硬化建设","乡村建设行动","产业路、资源路、旅游路建设",22,"前屯村","大碑屯道路硬化长500米、宽4米。",2026,462,462,"否","群众自发让地，财政衔接资金建设完善农业基础设施，群众参与监督并受益。","否","否","柳城县农业农村局","东泉镇人民政府","姚木兰","0772-7961211",22,22,0,"群众自发让地，财政衔接资金建设完善农业基础设施，群众参与监督并受益。"]
[177,"东泉镇青山村青山脚屯道路建设","乡村建设行动","产业路、资源路、旅游路建设",36,"青山村","硬化道路 长1000米，宽3.5米，厚度0.2米。",2026,152,152,"否","方便群众进行生产发展，进一步改善生产生活环境，提高满意度。","否","否","柳城县农业农村局","东泉镇人民政府","姚木兰","0772-7961211",36,36,0,"方便群众进行生产发展，进一步改善生产生活环境，提高满意度。"]
[178,"龙头镇隆水村石鸡山产业道路硬化","乡村建设行动","产业路、资源路、旅游路建设",59,"隆水村","硬化道路长约800米，路面宽4.5米，厚0.2米，路基、滚水坝等。",2026,409,1347,"否","群众积极参与，投工投劳。提升生产运输效率，解决群众1347人出行问题。","否","否","柳城县农业农村局","龙头镇人民政府","黄阳丽","0772-7871339",59,59,0,"隆水村产业道路硬化项目建成后，解决群众1347人出行问题。"]
[179,"龙头镇龙头村冬瓜岭屯至岭脚产业道路硬化","乡村建设行动","产业路、资源路、旅游路建设",45,"龙头村","建设硬化道路长约700米，路面宽4.0米，厚0.2米，路基、挡土墙等。",2026,505,2170,"否","群众积极参与，投工投劳。提升生产运输效率，解决群众2170人出行问题。","否","否","柳城县农业农村局","龙头镇人民政府","黄阳丽","0772-7871339",45,45,0,"龙头村产业道路硬化项目建成后，解决群众2170人出行问题。"]
[180,"社冲乡社冲村新社冲屯甘蔗产业基地道路硬化","乡村建设行动","产业路、资源路、旅游路建设",21,"社冲村","硬化道路长400米，宽3.5米，厚度0.2米等。",2026,800,800,"否","群众自发让地，衔接资金建设完善农村基础设施，群众积极参与项目建设及监督并受益。项目建成后，解决人农产品生产和运输问题，方便群众运输出行，其中涉及周边群众800余人。","否","否","柳城县农业农村局","社冲乡人民政府","覃晴","0772-2465977",21,21,0,"硬化道路长400米，宽3.5米，厚度0.2米。项目建成后，解决人农产品生产和运输问题，方便群众运输出行，其中涉及周边群众800余人。"]
["（二）人居环境整治(12个)",{"$nulls":3},{"$f":"SUM(E194:E205)","v":694}]
[181,"柳城县2026年少数民族发展资金-大埔镇同境村隘山屯村庄环境整治补短板建设项目","乡村建设行动","村容村貌提升",80,"同境村","新建排污沟总长1800米，排污沟盖板长1580米×宽0.5米，100cm×100cm三面光排污沟220米，硬化屯内道路长150米，宽3米，厚0.2米。",2026,412,412,"否","群众积极参与，投工投劳。改善生活生产条件、提高生活质量。","否","否","柳城县委统战部","柳城县委统战部","吴凯文","0772-7612400",80,80,0,"项目建成后，进一步提升村屯环境卫生，提高生活质量，增加群众幸福感。"]
[182,"柳城县2026年少数民族发展资金-古砦仫佬族乡龙袍村吴陋屯屯内巷道硬化建设项目","乡村建设行动","村容村貌提升",43,"龙袍村","修建屯内道路长800米，宽3.5米，厚0.2米。",2026,405,705,null,"群众积极参与、改善生活生产条件、提高生活质量，项目建成后解决群众通行难问题","否","否","柳城县委统战部","柳城县委统战部","吴凯文","0772-7612400",43,43,0,"完成800m屯内道路修建。"]
[183,"柳城县2026年少数民族发展资金-古砦仫佬族乡龙袍村冲垌屯屯内巷道硬化建设项目","乡村建设行动","村容村貌提升",38,"龙袍村","修建屯内道路长700米，宽3.5米，厚0.2米。",2026,286,586,null,"群众积极参与、改善生活生产条件、提高生活质量，项目建成后解决群众通行难问题","否","否","柳城县委统战部","柳城县委统战部","吴凯文","0772-7612400",38,38,0,"完成700m屯内道路修建。"]
[184,"冲脉镇冲恩村后全屯人居环境改造提升项目","乡村建设行动","村容村貌提升",55,"冲恩村","旧排水沟修缮、疏通，埋放排水涵管等；新建排水沟600米、排水沟盖板；公共基础照明设施新建太阳能路灯50盏等。\n屯道路硬化，长约550米，宽3.5米，厚0.2米，部分道路坑洼修理平整。",2026,328,328,"否","本项目通过修缮排水沟、安装照明设施、硬化屯内道路，全面改善后全屯88户农户（含脱贫户5户）的人居环境。环境改善不仅能提升村民生活品质和幸福感，还能减少疾病发生，间接解放劳动力投入生产，同时优美的环境也为发展乡村旅游、庭院经济，打造和美乡村奠定基础。","否","否","柳城县农业农村局","冲脉镇人民政府","黄城","0772-7741105",55,55,0,"完成人居环境整治建设,解决脱贫地区88户328人（其中脱贫户5户18人）基础设施薄弱的问题，提高脱贫地区生产生活质量。"]
[185,"冲脉镇大要村大要屯人居环境整治","乡村建设行动","村容村貌提升",53,"大要村","建设大要屯道路900米，宽3.5米，厚0.20米；排水沟300米0.6*0.6m，厚0.2米；",2026,543,543,"是","项目通过为大要屯修建道路和排水沟，显著改善145户农户（含脱贫户18户）的生活环境和出行条件。基础设施的提升有助于减少洪涝对农房和家庭的威胁，改善卫生状况，提升村庄整体形象，为后续产业发展吸引资源，激发村民共建美好家园、共享发展成果的内生动力，建立“基础提升-环境美化-产业跟进”的良性循环。","否","否","柳城县农业农村局","冲脉镇人民政府","黄城","0772-7741105",53,53,0,"完成人居环境整治建设,解决脱贫地区145户543人（其中脱贫户18户72人）基础设施薄弱的问题，提高脱贫地区生产生活质量。"]
[186,"凤山镇思练村思练屯人居环境治理","乡村建设行动","村容村貌提升",15,"思练村","三面光排污沟，长350米，高0.6米，宽0.4米。",2026,510,510,"否","该项目群众积极参与，项目解决群众出行及排污问题，极大改善群众居住环境。","否","否","柳城县农业农村局","凤山镇人民政府","黄鑫祥","0772-7911213",15,15,0,"完成补齐必要的农村基础设施建设，改善该屯人居环境，提高群众生活质量。"]
[187,"社冲乡社冲村新社冲屯人居环境整治项目","乡村建设行动","村容村貌提升",80,"社冲村","1、屯中道路硬化长约918米宽3.5米，厚0.2米等；\n2、修建排水沟长约500米，宽0.4米，高0.4米，加盖板等；\n3、道路两边扩宽硬化长约630米，宽1.0米，厚0.2米。",2026,710,710,"否","群众自发让地，衔接资金建设完善农村基础设施，群众积极参与项目建设及监督并受益。项目建成后，可提升当地103户710人人居条件，改善社冲村的生产生活条件和村容村貌，促进产业发展，方便群众出行。","否","否","柳城县农业农村局","社冲乡人民政府","覃晴","0772-2465977",80,80,0,"完成新建\n1.屯中道路硬化长918米*3.5米*0.2米等；\n2.修建排水沟500米*0.4米*0.5米，加盖板等；\n3.道路两边扩宽硬化630米*1米*0.2米等。"]
[188,"六塘镇六塘村九汉屯人居环境整治项目","乡村建设行动","村容村貌提升",70,"六塘村","建设道路硬化，屯中三面光排污沟1500米，高0.8米，宽0.8米。",2026,560,560,"否","改善六塘村的生产生活条件，促进产业发展。","否","否","柳城县农业农村局","六塘镇人民政府","郭琳","0772-7711213",70,70,0,"全面提升村容镇貌，建设生态宜居美丽乡村，增强六塘村560名群众幸福感"]
[189,"六塘镇黄冲村欧酉屯人居环境整治项目","乡村建设行动","村容村貌提升",50,"黄冲村","建设道路硬化420米，其中：\n1、硬化道路长100米，路面宽4.5米，厚0.2米，路肩各0.5米。\n2、硬化道路长240米，路面宽4米，厚0.2米，路肩各0.5米。\n3、硬化道路长80米，路面宽3米，厚0.2米，路肩各0.5米。\n路肩各0.5米、挡土墙、涵管、错车道等；",2026,824,824,"否","项目带动群众参与，路通业兴，精准带贫增收致富。建成后，解决824人出行、产业交通难题","否","否","柳城县农业农村局","六塘镇人民政府","郭琳","0772-7711213",50,50,0,"全面提升村容镇貌，建设生态宜居美丽乡村，增强黄冲村824名群众幸福感"]
[190,"六塘镇油兰村中定屯人居环境整治项目","乡村建设行动","村容村貌提升",100,"油兰村","建设道路硬化2000米，路面宽3.5米，厚0.2米；路肩各0.5米、挡土墙、涵管、错车道等；",2026,256,256,"否","改善油兰村的生产生活条件，促进产业发展。","否","否","柳城县农业农村局","六塘镇人民政府","郭琳","0772-7711213",100,100,0,"全面提升村容镇貌，建设生态宜居美丽乡村，增强油兰村560名群众幸福感"]
[191,"六塘镇黄冲村黄冲屯人居环境整治项目","乡村建设行动","村容村貌提升",50,"黄冲村","1、建设排洪沟500米，内空1.5*2米。\n2、建设道路300米，宽3.5米",2026,940,940,"否","项目带动群众参与，路通业兴，精准带贫增收致富。建成后，解决940人出行、产业交通、用水难题","否","否","柳城县农业农村局","六塘镇人民政府","郭琳","0772-7711213",50,50,0,"全面提升村容镇貌，建设生态宜居美丽乡村，增强黄冲村940名群众幸福感"]
[192,"东泉镇走马村山垌屯人居环境整治","乡村建设行动","村容村貌提升",60,"走马村","村中道路硬化800米，排污沟300米，合理设置涵管",2026,450,450,"是","村屯中道路泥泞，无硬化水泥路面，村民出行困难，该项目建成后，提升人居环境，减少污水横流，方便群众出行，进一步改善生产生活环境，提高满意度。","否","否","柳城县农业农村局","东泉镇人民政府","姚木兰","0772-7961211",60,60,0,"村屯中道路泥泞，无硬化水泥路面，村民出行困难，该项目建成后，提升人居环境，减少污水横流，方便群众出行，进一步改善生产生活环境，提高满意度。"]
["（三）农村饮水安全保障(73个)",{"$nulls":3},{"$f":"SUM(E207:E279)","v":4802.88}]
[193,"大埔镇正殿村正殿屯饮水安全巩固提升工程","乡村建设行动","农村供水保障设施建设",97,"正殿村","管网安装约5000m、闸阀井、加压设备及低压线路安装等。",2026,1320,1320,"否","改善村民用水困难问题","否","否","柳城县水利局","柳城县农田水利站","韦翔","0772-7613824",{"$f":"E207","v":97},{"$f":"S207","v":97},0,"项目建成后，解决1320人饮水安全问题。"]
[194,"大埔镇吉兆村连垌屯饮水安全巩固提升工程","乡村建设行动","农村供水保障设施建设",93,"吉兆村","管网安装约8000m、闸阀井、加压设备及低压线路安装等。",2026,554,554,"否","改善村民用水困难问题","否","否","柳城县水利局","柳城县农田水利站","韦翔","0772-7613824",93,93,0,"项目建成后，解决554人饮水安全问题。"]
[195,"大埔镇南村村河背屯饮水安全巩固提升工程","乡村建设行动","农村供水保障设施建设",65,"南村村","新建机井1口，高位水塔1座，泵机组和控制器1套，低压线路，铺设入户主管道2000米",2026,220,220,"否","改善村民用水困难问题","否","否","柳城县水利局","柳城县农田水利站","韦翔","0772-7613824",65,65,0,"项目建成后解决220人饮水安全问题"]
[196,"大埔镇中回村回龙屯、田心屯饮水安全巩固提升工程","乡村建设行动","农村供水保障设施建设",85,"中回村","新建机井1口，高位水塔1座，泵机组和控制器1套，低压线路，铺设入户主管道4000米",2026,404,404,"否","改善村民用水困难问题","否","否","柳城县水利局","柳城县农田水利站","韦翔","0772-7613824",85,85,0,"项目建成后，解决404人饮水安全问题。"]
[197,"大埔镇吉兆村吉兆屯饮水安全巩固提升工程","乡村建设行动","农村供水保障设施建设",100,"吉兆村","新建机井1口，高位水塔1座，泵机组和控制器1套，低压线路，铺设入户主管道10000米",2026,740,740,"否","改善村民用水困难问题","否","否","柳城县水利局","柳城县农田水利站","韦翔","0772-7613824",100,100,0,"项目建成后，解决740人饮水安全问题。"]
[198,"大埔镇龙台村古蒙屯饮水安全巩固提升工程","乡村建设行动","农村供水保障设施建设",45,"龙台村","高位水塔1座，铺设入户主管道4000米",2026,448,448,"否","改善村民用水困难问题","否","否","柳城县水利局","柳城县农田水利站","韦翔","0772-7613824",45,45,0,"项目建成后，解决156人饮水安全问题。"]
[199,"大埔镇中回村田厂屯饮水安全巩固提升工程","乡村建设行动","农村供水保障设施建设",65,"中回村","新建机井1口，高位水塔1座，泵机组和控制器1套，低压线路，铺设入户主管道2000米",2026,128,128,"否","改善村民用水困难问题","否","否","柳城县水利局","柳城县农田水利站","韦翔","0772-7613824",65,65,0,"项目建成后，解决1320人饮水安全问题。"]
[200,"大埔镇中回村上回屯饮水安全巩固提升工程","乡村建设行动","农村供水保障设施建设",65,"中回村","新建机井1口，高位水塔1座，泵机组和控制器1套，低压线路，铺设入户主管道2000米",2026,156,156,"否","改善村民用水困难问题","否","否","柳城县水利局","柳城县农田水利站","韦翔","0772-7613824",65,65,0,"项目建成后，解决448人饮水安全问题。"]
[201,"大埔镇吉兆村旦村屯饮水安全巩固提升工程","乡村建设行动","农村供水保障设施建设",30,"吉兆村","新建机井1口，高位水塔1座，泵机组和控制器1套，低压线路，铺设入户主管道3000米",2026,280,280,"否","改善村民用水困难问题","否","否","柳城县水利局","柳城县农田水利站","韦翔","0772-7613824",30,30,0,"项目建成后，解决280人饮水安全问题。"]
[202,"大埔镇同境村寨脚屯水源提升工程","乡村建设行动","农村供水保障设施建设",20,"同境村","新建机井1口，上水管100米，低压线路安装",2026,364,364,"否","改善村民用水困难问题","否","否","柳城县水利局","柳城县农田水利站","韦翔","0772-7613824",20,20,0,"项目建成后，解决364人饮水安全问题。"]
[203,"大埔镇上里村下里屯水源提升工程","乡村建设行动","农村供水保障设施建设",12,"上里村","新安装水箱一座，上水管300m",2026,538,538,"否","改善村民用水困难问题","否","否","柳城县水利局","柳城县农田水利站","韦翔","0772-7613824",12,12,0,"项目建成后，解决538人饮水安全问题。"]
[204,"大埔镇吉兆村江头屯饮水安全巩固提升工程","乡村建设行动","农村供水保障设施建设",50,"吉兆村","高位水塔一座，铺设上下水塔主管及入户主管道2000米",2026,210,210,"否","改善村民用水困难问题","否","否","柳城县水利局","柳城县农田水利站","韦翔","0772-7613824",50,50,0,"项目建成后，解决210人饮水安全问题。"]
[205,"东泉镇莫道村芩卜莫止屯饮水工程项目","乡村建设行动","农村供水保障设施建设",50,"莫道村","新建机井1口、泵房1间、水柜1座、管网安装约3000m、消毒设备安装及低压线路安装等。",2026,650,650,"否","改善村民用水困难问题","否","否","柳城县水利局","柳城县农田水利站","韦翔","0772-7613824",50,50,0,"项目建成后解决650人饮水安全问题。"]
[206,"东泉镇凉亭村福禄屯水源提升工程","乡村建设行动","农村供水保障设施建设",35,"凉亭村","新建机井1口、泵房1间、水柜50m³1座、管网安装约1500m、消毒设备安装及低压线路安装等。",2026,1000,1000,"否","改善村民用水困难问题","否","否","柳城县水利局","柳城县农田水利站","韦翔","0772-7613824",35,35,0,"项目建成后解决1000人饮水安全问题。"]
[207,"东泉镇莫道村莫道屯水源提升工程","乡村建设行动","农村供水保障设施建设",15,"莫道村","新建机井一口，上水管20米，低压线路安装",2026,565,565,"否","改善村民用水困难问题","否","否","柳城县水利局","柳城县农田水利站","韦翔","0772-7613824",15,15,0,"项目建成后解决 565人饮水安全问题。"]
[208,"东泉镇凉亭村三村屯水源提升工程","乡村建设行动","农村供水保障设施建设",20,"凉亭村","新建机井一口",2026,420,420,"否","改善村民用水困难问题","否","否","柳城县水利局","柳城县农田水利站","韦翔","0772-7613824",20,20,0,"项目建成后解决420人饮水安全问题。"]
[209,"古砦仫佬族乡岭头村、泗巷村饮水巩固安全提升工程","乡村建设行动","农村供水保障设施建设",500,"泗巷村、岭头村","加压泵站1套、变压器1台、管网安装8km及低压线路安装等",2026,2000,2000,"否","改善村民用水困难问题","否","否","柳城县水利局","柳城县农田水利站","韦翔","0772-7613824",{"$f":"E223","v":500},{"$f":"S223","v":500},0,"项目建成后解决2000人饮水安全问题。"]
[210,"古砦仫佬族乡龙袍村牛皮屯饮水巩固安全提升工程","乡村建设行动","农村供水保障设施建设",40,"龙袍村","管网安装4km",2026,340,340,"否","改善村民用水困难问题","否","否","柳城县水利局","柳城县农田水利站","韦翔","0772-7613824",40,40,0,"项目建成后解决340人饮水安全问题。"]
[211,"古砦乡汶炉村下姚屯饮水安全巩固提升工程","乡村建设行动","农村供水保障设施建设",50,"汶炉村","铺设110管3KM,75管2KM，32管3KM",2026,266,266,"是","改善村民用水困难问题","否","否","柳城县水利局","柳城县农田水利站","韦翔","0772-7613824",50,50,0,"项目建成后解决266人饮水安全问题。"]
[212,"古砦乡大户村蓬坡屯饮水安全巩固提升工程","乡村建设行动","农村供水保障设施建设",25,"大户村","铺设110管3KM,75管2KM，32管2KM",2026,595,595,"否","改善村民用水困难问题","否","否","柳城县水利局","柳城县农田水利站","韦翔","0772-7613824",25,25,0,"项目建成后解决595人饮水安全问题。"]
[213,"古砦仫佬族乡古砦村陆垌屯人饮工程","乡村建设行动","农村供水保障设施建设",20,"古砦村","铺设110管1.5KM,32管2KM",2026,166,166,"否","改善村民用水困难问题","否","否","柳城县水利局","柳城县农田水利站","韦翔","0772-7613824",20,20,0,"项目建成后解决166人饮水安全问题。"]
[214,"古砦仫佬族乡古砦村北岸屯人饮工程","乡村建设行动","农村供水保障设施建设",30,"古砦村","铺设110管2KM,75管2KM32管1KM",2026,312,312,"否","改善村民用水困难问题","否","否","柳城县水利局","柳城县农田水利站","韦翔","0772-7613824",30,30,0,"项目建成后解决312人饮水安全问题。"]
[215,"古砦仫佬族乡古砦村新村屯饮水安全提升工程","乡村建设行动","农村供水保障设施建设",20,"古砦村","管网安装2km",2026,232,232,"否","改善村民用水困难问题","否","否","柳城县水利局","柳城县农田水利站","韦翔","0772-7613824",20,20,0,"项目建成后解决232人饮水安全问题。"]
[216,"六塘镇黄冲村欧酉屯饮水安全巩固提升工程","乡村建设行动","农村供水保障设施建设",80,"黄冲村","新建机井1口，泵房1间，高位水塔1座，铺设管网，安装消毒设备及低压线路等。",2026,724,724,"否","改善村民用水困难问题","否","否","柳城县水利局","柳城县农田水利站","韦翔","0772-7613824",80,80,0,"项目建成后解决724人饮水安全问题。"]
[217,"六塘镇肯社村禄村屯饮水安全巩固提升工程","乡村建设行动","农村供水保障设施建设",80,"肯社村","新建机井1口，泵房1间，水柜1座，铺设管网，安装消毒设备及低压线路等。",2026,580,580,"否","改善村民用水困难问题","否","否","柳城县水利局","柳城县农田水利站","韦翔","0772-7613824",80,80,0,"项目建成后解决580人饮水安全问题。"]
[218,"六塘镇油兰村土桥屯人饮工程","乡村建设行动","农村供水保障设施建设",65,"油兰村","新建机井1口，泵房1间，水柜1座，铺设管网，安装消毒设备及低压线路等。",2026,690,690,"否","改善村民用水困难问题","否","否","柳城县水利局","柳城县农田水利站","韦翔","0772-7613824",65,65,0,"项目建成后解决690人饮水安全问题。"]
[219,"六塘镇油兰村木寨屯人饮工程","乡村建设行动","农村供水保障设施建设",55,"油兰村","新建机井1口，泵房1间，水柜1座，铺设管网，安装消毒设备及低压线路等。",2026,498,498,"否","改善村民用水困难问题","否","否","柳城县水利局","柳城县农田水利站","韦翔","0772-7613824",55,55,0,"项目建成后解决498人用饮水安全问题。"]
[220,"六塘镇三界村新村屯饮水提升改造工程","乡村建设行动","农村供水保障设施建设",20,"三界村","钻井一口，泵房设施及消毒设备一套，上水管铺设1000米",2026,95,95,"是","改善村民用水困难问题","否","否","柳城县水利局","柳城县农田水利站","韦翔","0772-7613824",20,20,0,"项目建成后解决95人饮水安全问题。"]
[221,"六塘镇中团村洛村屯饮水提升改造工程","乡村建设行动","农村供水保障设施建设",30,"中团村","钻井一口，泵房设施及消毒设备一套，上水管铺设1000米水塔楼梯修复",2026,525,525,"否","改善村民用水困难问题","否","否","柳城县水利局","柳城县农田水利站","韦翔","0772-7613824",30,30,0,"项目建成后解决525人饮水安全问题。"]
[222,"六塘镇三界村谷里屯应急水源工程","乡村建设行动","农村供水保障设施建设",41.18,"三界村","新建机井一口，上水管1200米，低压线路安装",2026,383,383,"否","改善村民用水困难问题","否","否","柳城县水利局","柳城县农田水利站","韦翔","0772-7613824",41.18,41.18,0,"项目建成后解决383人饮水安全问题。"]
[223,"六塘镇六塘村北基屯水源提升工程","乡村建设行动","农村供水保障设施建设",50,"六塘村","管网安装约8000m",2026,565,565,"否","改善村民用水困难问题","否","否","柳城县水利局","柳城县农田水利站","韦翔","0772-7613824",{"$f":"E237","v":50},{"$f":"S237","v":50},0,"项目建成后，解决565人饮问题"]
[224,"六塘镇六塘村银村屯饮水安全巩固提升工程","乡村建设行动","农村供水保障设施建设",60,"六塘村","新建机井1口，管网安装约2000m，变压器1座；",2026,663,663,"否","改善村民用水困难问题","否","否","柳城县水利局","柳城县农田水利站","韦翔","0772-7613824",60,60,0,"项目建成后，解决663人饮水安全问题。"]
[225,"六塘镇油兰村油兰屯饮水安全巩固提升工程","乡村建设行动","农村供水保障设施建设",70,"油兰村","新建机井1口，泵房1间，管网安装约8000m及低压线路安装；",2026,690,690,"否","改善村民用水困难问题","否","否","柳城县水利局","柳城县农田水利站","韦翔","0772-7613824",70,70,0,"项目完成后可解决690人饮水安全问题。"]
[226,"龙头镇隆水村倒水屯、大仓屯、三江坝屯、明石桥屯、独石屯、鸡隆坝屯、腰古屯、龙岩屯、邬家屯、大畲屯饮水安全巩固提升工程","乡村建设行动","农村供水保障设施建设",400,"隆水村","管网扩网工程15000m",2026,806,2700,"否","改善村民用水困难问题","否","否","柳城县水利局","柳城县农田水利站","韦翔","0772-7613824",400,400,0,"项目建后，解决2700人饮水安全问题。"]
[227,"龙头镇新村村新村屯、熊家屯饮水安全提升工程","乡村建设行动","农村供水保障设施建设",300,"新村村","管网扩网工程5000m",2026,173,620,"否","改善村民用水困难问题","否","否","柳城县水利局","柳城县农田水利站","韦翔","0772-7613824",300,300,0,"项目建后，解决620人饮水安全问题。"]
[228,"龙头镇瓦窑村加应屯饮水安全提升工程","乡村建设行动","农村供水保障设施建设",60,"瓦窑村","新建机井1口，水池1座，低压线路1000米",2026,77,280,"否","改善村民用水困难问题","否","否","柳城县水利局","柳城县农田水利站","韦翔","0772-7613824",60,60,0,"项目建后，解决280人饮水安全问题。"]
[229,"龙头镇伏虎村下屯、木村屯、上罗屯饮水安全巩固提升工程","乡村建设行动","农村供水保障设施建设",120,"伏虎村","管网扩网工程3000m",2026,286,1250,"否","改善村民用水困难问题","否","否","柳城县水利局","柳城县农田水利站","韦翔","0772-7613824",120,120,0,"项目建成后，解决1250人饮水安全问题。"]
[230,"寨隆镇下寨村下寨屯饮水安全巩固提升工程","乡村建设行动","农村供水保障设施建设",70,"下寨村","管网安装5000m，新建高位水池50m³，新建机井1口，低压线路等。",2026,190,750,"否","改善村民用水困难问题","否","否","柳城县水利局","柳城县农田水利站","韦翔","0772-7613824",70,70,0,"项目建成后，解决750人饮水安全问题。"]
[231,"寨隆镇寨隆村旁参屯饮水工程","乡村建设行动","农村供水保障设施建设",40,"寨隆村","管网安装1600m,叠压泵站1座,闸阀井若干等。",2026,76,267,"否","改善村民用水困难问题","否","否","柳城县水利局","柳城县农田水利站","韦翔","0772-7613824",40,40,0,"项目建成后，解决267人饮水安全问题。"]
[232,"寨隆镇鸡楼村鸡楼屯饮水安全巩固提升工程","乡村建设行动","农村供水保障设施建设",25,"鸡楼村","管网安装1500m，闸阀井若干等。",2026,80,286,"否","改善村民用水困难问题","否","否","柳城县水利局","柳城县农田水利站","韦翔","0772-7613824",25,25,0,"项目建成后，解决286人饮水安全问题。"]
[233,"寨隆镇下尧村洞棋屯水源提升工程","乡村建设行动","农村供水保障设施建设",15,"下尧村","新安装水箱一座，上水管50m",2026,461,461,"否","改善村民用水困难问题","否","否","柳城县水利局","柳城县农田水利站","韦翔","0772-7613824",15,15,0,"项目建成后，解决461人饮水安全问题。"]
[234,"马山镇大龙村下料屯饮水安全巩固提升工程","乡村建设行动","农村供水保障设施建设",50,"大龙村","更换管网PE90主管2000米，PE75管400米。",2026,720,720,"否","改善村民用水困难问题","否","否","柳城县水利局","柳城县农田水利站","韦翔","0772-7613824",50,50,0,"项目建成后，解决720人饮水安全问题。"]
[235,"马山镇五塘村黄田屯饮水安全巩固提升工程","乡村建设行动","农村供水保障设施建设",{"v":55,"d":"55.00"},"五塘村","消毒设备1套，更换主管网：110mm管1700米，75mm管1700米，50mm管1800米",2026,508,508,"否","改善村民用水困难问题","否","否","柳城县水利局","柳城县农田水利站","韦翔","0772-7613824",55,55,0,"项目建成后，解决508人饮水安全问题。"]
[236,"马山镇五塘村木凳屯饮水安全巩固提升工程","乡村建设行动","农村供水保障设施建设",59,"五塘村","消毒设备1套，旧址新建泵房，更换主管网：110mm管1000米，75mm管3000米，50mm管2000米",2026,980,980,"否","改善村民用水困难问题","否","否","柳城县水利局","柳城县农田水利站","韦翔","0772-7613824",59,59,0,"项目建成后，解决980人饮水安全问题。"]
[237,"马山镇北浩村岸山屯饮水安全巩固提升工程","乡村建设行动","农村供水保障设施建设",100,"北浩村","管网安装4750米、闸阀井若干及设备安装等。",2026,280,280,"是","改善村民用水困难问题","否","否","柳城县水利局","柳城县农田水利站","韦翔","0772-7613824",100,100,0,"项目建成后，解决280人饮水安全问题。"]
[238,"马山镇北浩村加应屯饮水安全巩固提升工程","乡村建设行动","农村供水保障设施建设",100,"北浩村","管网安装3450米、闸阀井若干及设备安装等。",2026,450,450,"是","改善村民用水困难问题","否","否","柳城县水利局","柳城县农田水利站","韦翔","0772-7613824",100,100,0,"项目建成后，解决450人饮水安全问题。"]
[239,"冲脉镇大要村古岳屯饮水巩固提升工程","乡村建设行动","农村供水保障设施建设",5,"大要村","新建泵房1间及低压线路安装",2026,288,288,"是","改善村民用水困难问题","否","否","柳城县水利局","柳城县农田水利站","韦翔","0772-7613824",{"$f":"E253","v":5},{"$f":"S253","v":5},0,"项目建成后，可以解决288人饮水安全问题"]
[240,"冲脉镇冲脉社区冲脉屯饮水巩固提升工程","乡村建设行动","农村供水保障设施建设",12,"冲脉社区","更换下水管道2000米",2026,415,415,"否","改善村民用水困难问题","否","否","柳城县水利局","柳城县农田水利站","韦翔","0772-7613824",12,12,0,"项目建成后，可以解决415人饮水安全问题"]
[241,"冲脉镇指挥村大陆屯饮水巩固提升工程","乡村建设行动","农村供水保障设施建设",7,"指挥村","新建机井1口；泵房1间及低压线路安装",2026,300,300,"否","改善村民用水困难问题","否","否","柳城县水利局","柳城县农田水利站","韦翔","0772-7613824",7,7,0,"项目建成后，可以解决300人饮水安全问题"]
[242,"太平镇板贡村六湖屯水源提升工程","乡村建设行动","农村供水保障设施建设",44,"板贡村","新建机井1口，安装水管2000米，安装变压器1套及低压线路等",2026,112,112,"是","改善村民用水困难问题","否","否","柳城县水利局","太平镇人民政府","韦俏爽","0772-7051213",44,44,0,"项目建成后，解决112人饮水安全问题。"]
[243,"太平镇板料村东黄、上黄、西黄屯水源提升工程","乡村建设行动","农村供水保障设施建设",16,"板料村","新建机井1口,管网安装450米及低压线路等",2026,532,532,"是","改善村民用水困难问题","否","否","柳城县水利局","柳城县农田水利站","韦翔","0772-7613824",16,16,0,"项目建成后，解决532人饮水安全问题。"]
[244,"太平镇上油村上油屯水源提升工程","乡村建设行动","农村供水保障设施建设",12,"上油村","新建机井1口",2026,396,396,"是","改善村民用水困难问题","否","否","柳城县水利局","柳城县农田水利站","韦翔","0772-7613824",12,12,0,"项目建成后，解决396人饮水安全问题。"]
[245,"太平镇木界村山腰屯水源提升工程","乡村建设行动","农村供水保障设施建设",35,"木界村","新建机井1口，新建泵房1间，管网安装1700米及低压线路等",2026,422,422,"否","改善村民用水困难问题","否","否","柳城县水利局","柳城县农田水利站","韦翔","0772-7613824",35,35,0,"项目建成后，解决422人饮水安全问题。"]
[246,"太平镇龙兴村上塘屯饮水安全巩固提升工程","乡村建设行动","农村供水保障设施建设",9,"龙兴村","管网改造安装1000米",2026,534,534,"否","改善村民用水困难问题","否","否","柳城县水利局","柳城县农田水利站","韦翔","0772-7613824",9,9,0,"项目建成后，解决534人饮水安全问题。"]
[247,"太平镇板贡村板贡屯水源提升工程","乡村建设行动","农村供水保障设施建设",45,"板贡村","新建机井1口，新建泵房1间，新建高位水箱1座，管网安装1500米，安装变压器1套及低压线路等",2026,378,378,"是","改善村民用水困难问题","否","否","柳城县水利局","柳城县农田水利站","韦翔","0772-7613824",45,45,0,"项目建成后，解决378人饮水安全问题。"]
[248,"太平镇西岸村六笛屯水源提升工程","乡村建设行动","农村供水保障设施建设",20,"西岸村","新建机井1口,泵房1间，管网安装900米及低压线路",2026,84,84,"是","改善村民用水困难问题","否","否","柳城县水利局","柳城县农田水利站","韦翔","0772-7613824",20,20,0,"项目建成后，解决84人饮水安全问题。"]
[249,"太平镇龙兴村古么屯饮水安全巩固提升工程","乡村建设行动","农村供水保障设施建设",36,"龙兴村","新建机井1口，泵房1间，高位水箱1座，安装管网约2900米及低压线路",2026,312,312,"否","改善村民用水困难问题","否","否","柳城县水利局","柳城县农田水利站","韦翔","0772-7613824",36,36,0,"项目建成后，解决312人饮水安全问题。"]
[250,"太平镇木界村小村屯水源提升工程","乡村建设行动","农村供水保障设施建设",25,"木界村","新建机井1口，泵房1间，管网安装2000米及低压线路",2026,222,222,"否","改善村民用水困难问题","否","否","柳城县水利局","柳城县农田水利站","韦翔","0772-7613824",25,25,0,"项目建成后，解决222人饮水安全问题。"]
[251,"太平镇山咀村高坎屯饮水安全巩固提升工程","乡村建设行动","农村供水保障设施建设",33,"山咀村","新建机井1口，泵房1间，高位水箱1座，安装管网3700米及低压线路",2026,476,476,"否","改善村民用水困难问题","否","否","柳城县水利局","柳城县农田水利站","韦翔","0772-7613824",33,33,0,"项目建成后，解决476人饮水安全问题。"]
[252,"太平镇山咀村高湾屯饮水安全巩固提升工程","乡村建设行动","农村供水保障设施建设",45,"山咀村","新建机井1口，泵房1间，高位水箱1座，安装管网5900米及低压线路",2026,644,644,"否","改善村民用水困难问题","否","否","柳城县水利局","柳城县农田水利站","韦翔","0772-7613824",45,45,0,"项目建成后，解决644人饮水安全问题。"]
[253,"太平镇木界村覃村屯饮水安全巩固提升工程","乡村建设行动","农村供水保障设施建设",42,"木界村","新建机井1口，泵房1间，高位水箱座，安装管网5500米及低压线路",2026,610,610,"否","改善村民用水困难问题","否","否","柳城县水利局","柳城县农田水利站","韦翔","0772-7613824",42,42,0,"项目建成后，解决610人饮水安全问题。"]
[254,"社冲乡仓贝村良冲\n屯、牧场屯饮水安\n全巩固提升工程管\n网改造项目","乡村建设行动","农村供水保障设施建设",16,"仓贝\n村","改造PE管φ75\n2000米；改造PE管φ63\n1500米",2026,554,615,"否","改善村民用水困难问题","否","否","柳城县水利局","柳城县农田水利站","韦翔","0772-7613824",16,16,0,"项目建成后，解决554人饮水安全问题。"]
[255,"社冲乡仓贝村上堡\n门屯、下堡屯饮水\n安全巩固提升工程\n管网改造项目","乡村建设行动","农村供水保障设施建设",17.2,"仓贝\n村","改造PE管φ75\n2000米；改造PE管φ63\n1800米",2026,1160,1289,"否","改善村民用水困难问题","否","否","柳城县水利局","柳城县农田水利站","韦翔","0772-7613824",17.2,17.2,0,"项目建成后，解决1160人饮水安全问题。"]
[256,"社冲乡平村村乌鸾屯饮水安全巩固提升工程水源改造项目","乡村建设行动","农村供水保障设施建设",7.5,"平村\n村","新建机井1口",2026,284,315,"否","改善村民用水困难问题","否","否","柳城县水利局","柳城县农田水利站","韦翔","0772-7613824",7.5,7.5,0,"项目建成后，解\n决284人饮水安\n   全问题。"]
[257,"沙埔镇古仁村减龙片区饮水安全巩固提升工程","乡村建设行动","农村供水保障设施建设",250,"古仁村","高位水池100m³，管网安装15000m,闸阀井若干。",2026,1160,1160,"是","改善村民用水困难问题","否","否","柳城县水利局","柳城县农田水利站","韦翔","0772-7613824",250,250,0,"项目建成后，解决1160人饮问题"]
[258,"沙埔镇古仁村罗、陈家屯水源提升工程","乡村建设行动","农村供水保障设施建设",20,"古仁村","新建机井1口、管道安装1000m及低压线路安装",2026,168,168,"否","改善村民用水困难问题","否","否","柳城县水利局","柳城县农田水利站","韦翔","0772-7613824",20,20,0,"项目建成后，解决168人饮问题"]
[259,"沙埔镇碑田村汶水龙屯饮水安全巩固提升工程","乡村建设行动","农村供水保障设施建设",80,"碑田村","新建机井1口、管道安装3600m及低压线路安装；",2026,290,290,"否","改善村民用水困难问题","否","否","柳城县水利局","柳城县农田水利站","韦翔","0772-7613824",80,80,0,"项目建成后，解决290人饮问题"]
[260,"凤山镇头塘村杨家屯、骆家屯水源提升工程","乡村建设行动","农村供水保障设施建设",20,"头塘村","新建机井1口、管道安装1200m及低压线路安装",2026,598,598,"否","改善村民用水困难问题","否","否","柳城县水利局","柳城县农田水利站","韦翔","0772-7613824",20,20,0,"项目建成后，解决598人饮问题"]
[261,"凤山镇对河村荡坪屯饮水工程","乡村建设行动","农村供水保障设施建设",9,"对河村","新建1口井及泵房等相关设施。",2026,1132,1132,"是","改善村民用水困难问题","否","否","柳城县水利局","柳城县农田水利站","韦翔","0772-7613824",9,9,0,"项目建成后，解决1132人饮问题"]
[262,"凤山镇对河村塘进屯饮水工程","乡村建设行动","农村供水保障设施建设",60,"对河村","将原有深水井扩宽扩展，增容",2026,1134,1134,"是","改善村民用水困难问题","否","否","柳城县水利局","柳城县农田水利站","韦翔","0772-7613824",60,60,0,"项目建成后，解决1134人饮问题"]
[263,"凤山镇南丹村西门崖屯人饮工程提升","乡村建设行动","农村供水保障设施建设",25,"南丹村","新建取水口（河中挖大口井），水管安装130米",2026,350,350,"否","改善村民用水困难问题","否","否","柳城县水利局","柳城县农田水利站","韦翔","0772-7613824",25,25,0,"项目建成后，解决350人饮问题"]
[264,"凤山镇南丹村勒马屯饮水安全巩固提升工程","乡村建设行动","农村供水保障设施建设",45,"南丹村","新建水塔及上下水管",2026,375,375,"否","改善村民用水困难问题","否","否","柳城县水利局","柳城县农田水利站","韦翔","0772-7613824",45,45,0,"项目建成后，解决375人饮问题"]
[265,"农村饮水水质提升工程","乡村建设行动","农村供水保障设施建设",390,"柳城县","消毒、净化设备安装",2026,3500,3500,"否","改善村民用水困难问题","否","否","柳城县水利局","柳城县农田水利站","韦翔","0772-7613824",390,390,0,"项目建成后，解决3500人饮问题"]
["（四）农村供水保障(5个)",{"$nulls":3},{"$f":"SUM(E281:E285)","v":400}]
[266,"2026年马山镇大龙水库西干渠、南干渠改造提升工程","乡村建设行动","农村供水保障设施建设",80,"马山镇","西干渠改造提升1800米及附属水工程建筑物；\n南干渠改造提升1200米及附属水工程建筑物。",2026,8000,8000,"否","工程建成后，改善0.5万亩耕地灌溉用水。","否","否","柳城县水利局","柳城县乡镇水利管理站","杨连喜","0772-7615916",80,80,0,"改善5000亩灌溉面积，保障粮食安全。"]
[267,"2026年东泉镇峨侣水库东干渠改造提升工程","乡村建设行动","农村供水保障设施建设",80,"东泉镇","东干渠针对碑塘村屯段渠道改造提升1700米及附属水工程建筑物。",2026,2000,2000,"否","工程建成后，改善0.3万亩耕地灌溉用水。","否","否","柳城县水利局","柳城县乡镇水利管理站","杨连喜","0772-7615916",80,80,0,"改善3000亩灌溉面积，保障粮食安全。"]
[268,"2026年古砦仫佬族乡独山水库南干渠、上村支渠、云峰支渠改造提升工程","乡村建设行动","农村供水保障设施建设",80,"古砦乡","南干渠改造提升1000米及附属水工程建筑物；\n上村支渠改造提升900米及附属水工程建筑物；\n云峰支渠改造提升1480米及附属水工程建筑物；",2026,13000,13000,"否","工程建成后，改善0.8万亩耕地灌溉用水。","否","否","柳城县水利局","柳城县乡镇水利管理站","杨连喜","0772-7615916",80,80,0,"改善8000亩灌溉面积，保障粮食安全。"]
[269,"2026年太平镇安乐水库东干渠、西干渠改造提升工程","乡村建设行动","农村供水保障设施建设",80,"太平镇","东干渠改造提升900米及附属水工程建筑物；\n西干渠改造提升1600米及附属水工程建筑物。",2026,6000,6000,"否","工程建成后，改善0.4万亩耕地灌溉用水。","否","否","柳城县水利局","柳城县乡镇水利管理站","杨连喜","0772-7615916",80,80,0,"改善4000亩灌溉面积，保障粮食安全。"]
[270,"2026年沙埔镇沙埔河灌区东干渠改造提升工程","乡村建设行动","农村供水保障设施建设",80,"沙埔镇","东干渠针对渠道淤堵、损坏处改造提升2800米及附属水工程建筑物；",2026,20000,20000,"否","工程建成后，改善2.5万亩耕地灌溉用水。","否","否","柳城县水利局","柳城县乡镇水利管理站","杨连喜","0772-7615916",80,80,0,"改善25000亩灌溉面积，保障粮食安全。"]
["三、就业项目(7个)",{"$nulls":3},{"$f":"E287+E290","v":2897.36}]
["(一)就业补助（2个）",{"$nulls":3},{"$f":"SUM(E288:E289)","v":230}]
[271,"2026县域内稳定就业劳务补助","就业项目","生产奖补、劳务补助等",110,"柳城县","对在本县域内就业帮扶车间、企业、个体工商户等合法经营主体务工就业1个月以上（含）的脱贫人口（监测对象）给予劳务补助。",2026,1080,1080,"否","落实脱贫人口县域内稳定就业，促进就业促进增收。","否","否","柳城县农业农村局","柳城县农业农村局","张笛","0772-7611187",110,110,0,"落实脱贫人口县域内稳定就业，促进就业促进增收。"]
[272,"2026跨省就业一次性交通补助","就业项目","交通费补助",120,"柳城县","对前往广西区外务工的脱贫人口（监测对象）给予交通补助。",2026,3200,3200,"否","落实脱贫人口跨省就业补助，促进脱贫人口就业，促增收。","否","否","柳城县农业农村局","柳城县农业农村局","张笛","0772-7611187",120,120,0,"落实脱贫人口跨省就业补助，促进脱贫人口就业，促增收。"]
["(二)公益性岗位（5个）",{"$nulls":3},{"$f":"SUM(E291:E295)","v":2667.36}]
[273,"2026年乡村建设公益性岗位","就业项目","公益性岗位",1889.28,"柳城县","对防止返贫监测网格员、护田员、村级水域巡查员（防溺水）、乡村道路保洁员、易地扶贫搬迁安置点公共服务人员、农家书屋管理员助理乡村建设公益性岗位给予补贴",2026,1643,1643,"否","通过安置给予防止返贫监测网格员、护田员、村级水域巡查员（防溺水）、乡村道路保洁员、易地扶贫搬迁安置点公共服务人员、农家书屋管理员助理就业，增加群众就业，提高收入","否","否","柳城县农业农村局","柳城县农业农村局、柳城县自然资源和规划局、柳城县教育局、柳城县综合行政执法局、柳城县发改局、柳城县委宣传部","张笛","0772-7611187",1889.28,1889.28,0,"防止返贫监测网格员、护田员、村级水域巡查员（防溺水）、乡村道路保洁员、易地扶贫搬迁安置点公共服务人员、农家书屋管理员助理就业，增加群众就业，提高收入"]
[274,"2026年村级水域巡查员公益性岗位补贴","就业项目","公益性岗位",168.48,"柳城县","共计设立108个公益性岗位，按1300元/月发放村级水域巡查员津贴，共12个月村级水域巡查员负责日常巡查村内溪流、河道，定期清理河道周边垃圾，及时报告违法电鱼等违法违规行为",2026,108,108,"否","通过公益性岗位，解决108名贫困人口就业问题","否","否","柳城县水利局","柳城县水利局","廖耀光","0772-7617606",168.48,168.48,0,"村级水域巡查员项目实施后，解决108名贫困人口就业。"]
[275,"2026年乡村建设护林员公益性岗位补贴","就业项目","公益性岗位",280.8,"柳城县","聘请护林员，建立林区管护员基层管护队伍，实行森林草原资源网格化管理。",2026,180,180,"否","开发护林员就业岗位，提高护林员收入。","否","否","柳城县自然资源和规划局","柳城县自然资源和规划局","林源","0772-7612401",280.8,280.8,0,"通过聘请护林员，建立林区管护员基层管护队伍，保护森林资源，提高护林员收入。"]
[276,"2026年乡村公益性岗位","就业项目","公益性岗位",280.8,"柳城县","设立180个乡村公益性岗位，按1300元/月给予补贴，聘请脱贫劳动力开展乡村社会治安协管，乡村环境卫生清扫、乡村孤寡老人和留守儿童看护等",2026,180,180,"否","预计180名脱贫劳动力获得就业机会，增加收入，维护社会稳定。","否","否","柳城县人力资源和社会保障局","柳城县就业服务中心","覃建莫","0772-7612425",280.8,280.8,0,"预计安置180名脱贫劳动力就业"]
[277,"2026年易地搬迁安置点乡村公益性岗位（易安后扶）","就业项目","公益性岗位",48,"柳城县","对易地扶贫安置点群众进行公益性岗位安置，按2000元/月给予补贴",2026,20,20,"否","20名易地扶贫安置点群众获得就业机会，维护安置点稳定","否","是","柳城县人力资源和社会保障局","柳城县就业服务中心","覃建莫","0772-7612425",48,48,0,"安置20名易地扶贫搬迁群众就业"]
["四、巩固三保障成果（1个）",{"$nulls":3},{"$f":"E297","v":210}]
[278,"2026年雨露计划","巩固三保障成果","“雨露计划”职业教育补助",210,"柳城县","给脱贫户（监测户）家中符合雨露计划补助条件的学生和参加短期技能培训、农村实用技术培训的劳动力予以补助。",2026,1200,1200,"否","通过对符合雨露计划条件的脱贫人口，发放雨露计划补助，减轻教育负担；提高实用技术技能。","否","否","柳城县农业农村局","柳城县农业农村局","张笛","0772-7611187",210,210,0,"通过对符合雨露计划条件的脱贫人口，发放雨露计划补助，减轻教育负担；提高实用技术能。"]
["五、项目管理费（1个）",{"$nulls":3},{"$f":"E299","v":500}]
[279,"2026年项目管理费","项目管理费","项目管理费",500,"柳城县","用于衔接资金项目设计、预算、评审、评估、监理、结算、质检、资产后续管护等费用",2026,"/","/","否","/","否","否","柳城县农业农村局","柳城县农业农村局","李悦溪","0772-7610273",500,500,0,"推进衔接资金项目有效实施"]
["   主要领导：黄相洪                                                             分管领导： 兰运龙                                                            填表人：叶文彬"]